{"text_format":"1","workbook":"xlsx","n_sheets":29,"sheets":["Инструкция","Лог обновления","Титульный","Отпуск ЭЭ сет организациями","Комментарии","Проверка","Statistic","TEHSHEET","et_union","AllSheetsInThisWorkbook","mod_01","mod_11","modComm","modListProv","modButton","modInstruction","modHTTP","REESTR_ORG","REESTR_FIL","REESTR_MO","REESTR_EGRUL","modfrmRegion","modfrmReestr","modfrmFindEGRUL","modfrmCheckUpdates","modReestr","modUpdTemplMain","modHyperlink","modClassifierValidate"],"not_rendered":{"charts":0,"images":18,"macros":1,"external_links":1,"defined_names":135,"comments":0,"pivot_tables":0},"unopened":[],"bounds":{"document_bytes":16777216,"sheet_cells":100000,"rows_first":2000,"rows_last":500,"rows_between":2000,"halvings":0,"cell_chars":16384,"cell_head_chars":4096},"cells_cut":0,"cells_raw":0,"read":"whole","date_system":"1900"}

{"sheet":"Инструкция","index":0,"n_rows":107,"n_cols":27,"rows_kept":107,"cut":false,"hidden":false,"merged":[[76,4,76,23],[20,5,20,12],[21,15,21,23],[34,4,38,23],[22,5,22,13],[39,4,39,23],[80,4,80,23],[79,4,79,23],[71,4,71,23],[70,4,70,23],[72,4,74,23],[86,10,86,23],[59,4,59,9],[59,10,59,23],[1,1,1,6],[2,1,2,2],[4,1,4,24],[6,4,18,23],[58,4,58,9],[58,10,58,23],[45,4,56,23],[20,15,20,23],[21,5,21,12],[93,10,93,23],[88,4,88,23],[89,10,89,23],[104,5,104,18],[90,4,90,9],[90,10,90,23],[82,4,82,23],[86,4,86,9],[106,5,106,23],[85,4,85,6],[81,4,81,23],[87,4,87,9],[87,10,87,23],[102,4,102,23],[92,4,92,9],[93,4,93,9],[92,10,92,23],[89,4,89,9]]}
[null,null,null,null,null,null,null,null,null,null,null,null,null,null,null,null,null,null,null,null,null,null,null,null,null,null," (требуется обновление)"]
[null,{"$f":"\"Код шаблона: \" & GetCode()","v":"Код шаблона: 46EP.STX"}]
[null,{"$f":"\"Версия \" & GetVersion()","v":"Версия 1.0"}]
[]
[null,"Сведения об отпуске (передаче) электроэнергии распределительными сетевыми организациями отдельным категориям потребителей\nПриказ Росстата: Об утверждении формы от 05.09.2018 № 543"]
[]
[null,null,null,null,"• На рабочем месте должен быть установлен MS Office 2007 SP3, 2010, 2013, 2016 с полной версией MS Excel\n\n• Макросы во время работы должны быть включены (!)\n\n• Для корректной работы отчёта требуется выбрать низкий уровень безопасности\n(В меню MS Excel 2007/2010/2013/2016: Параметры Excel | Центр управления безопасностью | Параметры центра управления безопасностью | Параметры макросов | Включить все макросы | ОК)\n\n• Если Вы работаете в табличном процессоре MS Excel 2007 и выше, то можете использовать для работы формат XLSB (Двоичная книга Excel). При работе в формате XLSB заметно быстрее происходит сохранение файла, а также уменьшается размер по сравнению с форматами XLS и XLSM\n\n• Не рекомендуется снимать защиту с листов и каким-либо образом модифицировать защищаемые формулы и расчётные поля, в противном случае, отчёт будет отклонён системой\n\n• При сохранении не следует выбирать формат XLSX (Книга Excel), так как в указанном формате макросы, необходимые для работы отчёта, безвозвратно удаляются"]
[]
[]
[]
[]
[]
[]
[]
[]
[]
[]
[]
[]
[]
[null,null,null,null,"A"," - предназначенные для заполнения",null,null,null,null,null,null,null,null,"A"," - обязательные для заполнения поля"]
[null,null,null,null,"A"," - с формулами и константами",null,null,null,null,null,null,null,null,"A"," - незаполняемые поля"]
[null,null,null,null,"A"," - с выбором значений по двойному клику"]
[]
[]
[]
[]
[]
[]
[]
[]
[]
[]
[]
[null,null,null,null,"Если в предложенном Вам списке необходимая организация, МР/МО отсутствуют, обновите реестры с помощью кнопок\n\nВ результате синхронизации с базой данных список организаций (МР/МО) будет заменён актуальным (механизм синхронизации требует подключения к сети Интернет и основан на использовании протокола HTTPS (TCP порт 443))\n\nЕсли после обновления Вам не удалось найти необходимую организацию в списке, обратитесь к ответственному за поддержание реестра Вашего региона."]
[]
[]
[]
[]
[]
[]
[]
[]
[]
[]
[null,null,null,null,"• При сохранении шаблона осуществляется проверка корректности данных, в том числе на наличие значений в ячейках, обязательных для заполнения\n\n• Если какая-то ячейка не удовлетворяет условию проверки, на лист «Проверка» добавляется гиперссылка на данную ячейку и указывается причина ошибки\n\n• В колонке «Статус» для каждого сообщения возможны 2 значения: ошибка и предупреждение\n\n• При наличии сообщений со статусом «Ошибка» шаблон будет отклонён системой и не будет загружен в хранилище данных, сообщения со статусом «Предупреждение» носят информационный характер, и такой шаблон будет принят системой"]
[]
[]
[]
[]
[]
[]
[]
[]
[]
[]
[]
[]
[null,null,null,null,"Консультации:",null,null,null,null,null,"Обратиться за помощью"]
[null,null,null,null,"Дистрибутивы:",null,null,null,null,null,"Перейти"]
[]
[]
[]
[]
[]
[]
[]
[]
[]
[null,null,null,null,"Общие указания по заполнению:"]
[null,null,null,null,"Указания по заполнению формы федерального статистического наблюдения"]
[]
[null,null,null,null,"Если срок предоставления отчета истек, необходимо загрузить в систему пояснительную записку и указать ссылку на нее на листе \"Титульный\" в поле \"Ссылка на обосновывающие материалы\""]
[]
[]
[null,null,null,null,"Обосновывающие материалы необходимо загружать с помощью \"ЕИАС Мониторинг\":"]
[null,null,null,null,"Руководство по загрузке документов"]
[]
[null,null,null,null,"Пример пояснительной записки:"]
[null,null,null,null,"Пояснительная записка"]
[]
[]
[]
[]
[]
[]
[null,null,null,null,"Отчётные формы:",null,null,null,null,null,"Перейти к разделу"]
[]
[null,null,null,null,"Контакты специалистов ЦА ФАС России:"]
[null,null,null,null,"ФИО:",null,null,null,null,null,"Максим Николаевич Пальянов"]
[null,null,null,null,"E-mail:",null,null,null,null,null,"palyanovmn@fas.gov.ru"]
[]
[null,null,null,null,"ФИО:",null,null,null,null,null,"Игорь Владиславович Бедрин"]
[null,null,null,null,"E-mail:",null,null,null,null,null,"bedrin@fas.gov.ru"]
[]
[]
[]
[]
[]
[]
[]
[]
[null,null,null,null,"При наличии подключения к Интернет, можно автоматически проверять наличие доступных обновлений. Выберите способ оповещения о наличии обновлений для отчёта:"]
[]
[null,null,null,null,null,"проверять доступные обновления (рекомендуется)",null,null,null,null,null,null,null,null,null,null,null,null,null,null,null,null,null,null,null,null,"y"]
[]
[null,null,null,null,null,"никогда не проверять наличие обновлений (не рекомендуется)"]

{"sheet":"Лог обновления","index":1,"n_rows":14,"n_cols":4,"rows_kept":14,"cut":false,"hidden":true,"merged":[]}
[]
["3/17/2012 12:12:41 AM","Дата/Время","Сообщение","Статус"]
[null,"2018-12-05T08:29:24","Проверка доступных обновлений...","Информация"]
[null,"2018-12-05T08:29:26","Нет доступных обновлений для отчёта с кодом 46EP.STX!","Информация"]
[null,"2018-12-05T08:29:52","Проверка доступных обновлений...","Информация"]
[null,"2018-12-05T08:29:53","Нет доступных обновлений для отчёта с кодом 46EP.STX!","Информация"]
[null,"2018-12-05T08:32:33","Проверка доступных обновлений...","Информация"]
[null,"2018-12-05T08:32:34","Нет доступных обновлений для отчёта с кодом 46EP.STX!","Информация"]
[null,"2018-12-11T11:03:02","Проверка доступных обновлений...","Информация"]
[null,"2018-12-11T11:03:04","Нет доступных обновлений для отчёта с кодом 46EP.STX!","Информация"]
[null,"2018-12-24T08:32:12","Проверка доступных обновлений...","Информация"]
[null,"2018-12-24T08:32:14","Нет доступных обновлений для отчёта с кодом 46EP.STX!","Информация"]
[null,"2018-12-25T09:15:42","Проверка доступных обновлений...","Информация"]
[null,"2018-12-25T09:15:44","Нет доступных обновлений для отчёта с кодом 46EP.STX!","Информация"]

{"sheet":"Титульный","index":2,"n_rows":60,"n_cols":10,"rows_kept":60,"cut":false,"hidden":false,"merged":[[7,4,7,6]]}
[]
[]
[]
[]
[]
[]
[null,null,null,null,null,null,{"$f":"version","v":"Версия 1.0"}]
[null,null,null,null,"Сведения об отпуске (передаче) электроэнергии распределительными сетевыми организациями отдельным категориям потребителей"]
[]
[null,null,null,null,null,"Субъект РФ","Самарская область"]
[null,null,null,null,null,null,"Отчетный период"]
[null,null,null,null,null,"Год",2018]
[null,null,null,null,null,"Месяц","ноябрь"]
[]
[null,null,null,null,null,"Наименование организации","АО \"Самарская кабельная компания\"",null,null,"26322459"]
[null,null,null,null,null,"ИНН","6318101450"]
[null,null,null,null,null,"КПП","631801001"]
[null,null,null,null,null,"Вид деятельности","РСО"]
[]
[null,null,null,null,null,"Тип отчета","В целом по организации"]
[null,null,null,null,null,"Наименование обособленного подразделения"]
[]
[null,null,null,null,null,"ОКПО","05758670"]
[]
[null,null,null,null,null,"ОКАТО","36401392000"]
[]
[null,null,null,null,null,"Муниципальный район","городской округ Самара"]
[null,null,null,null,null,"Муниципальное образование","городской округ Самара"]
[null,null,null,null,null,"ОКТМО","36701000"]
[]
[null,null,null,null,null,"Котлодержатель","Нет"]
[]
[null,null,null,null,null,"Плательщик НДС","Да"]
[null,null,null,null,null,null,"Адрес организации"]
[null,null,null,null,null,"Юридический адрес:","443022, г. Самара, ул. Кабельная, 9"]
[null,null,null,null,null,"Почтовый адрес:","443022, г. Самара, ул. Кабельная, 9"]
[null,null,null,null,null,null,"Руководитель"]
[null,null,null,null,null,"Фамилия, имя, отчество","Ключников Валерий Федорович"]
[null,null,null,null,null,"(код) номер телефона","(846) 228-24-00"]
[null,null,null,null,null,null,"Главный бухгалтер"]
[null,null,null,null,null,"Фамилия, имя, отчество","Тесемкина Татьяна Геннадьевна"]
[null,null,null,null,null,"(код) номер телефона","(846) 228-22-46"]
[null,null,null,null,null,null,"Должностное лицо, ответственное за составление формы"]
[null,null,null,null,null,"Фамилия, имя, отчество","Круглова Татьяна Владимировна"]
[null,null,null,null,null,"Должность","инженер ОГЭ"]
[null,null,null,null,null,"(код) номер телефона","(846) 228-24-57"]
[null,null,null,null,null,"e-mail","Круглова Т. В. [kruglova@samaracable.ru]"]
[]
[null,null,null,null,null,"Максимальный интервал представления отчёта за прошедшие периоды (дней)","90"]
[]
[]
[]
[]
[]
[]
[null,null,null,null,"Дата последнего обновления реестра МР/МО:\r05.12.2018 8:29:52"]
[null,null,null,null,"Дата последнего обновления реестра организаций: 05.12.2018 8:32:11"]
[]
[null,null,null,null,null,"Срок предоставления отчета истек","Нет"]
[null,null,null,null,null,"Ссылка на обосновывающие материалы"]

{"sheet":"Отпуск ЭЭ сет организациями","index":3,"n_rows":154,"n_cols":17,"rows_kept":154,"cut":false,"hidden":false,"merged":[[150,12,150,13],[152,5,152,7],[153,5,153,7],[89,3,89,10],[93,3,93,10],[126,3,126,10],[149,5,149,6],[149,8,149,10],[150,5,150,6],[150,8,150,10],[7,3,7,4],[10,3,11,3],[13,3,13,10],[51,3,51,10],[10,4,11,4],[10,5,11,5],[10,6,11,6],[10,7,10,10]]}
[]
[]
[]
[]
[null,null,null,null,null,"L1","L1.1","L1.2","L2","L2.1","L2.2","L3","L3.1","L3.1","L3.2","L4.1","L4.2"]
[]
[]
[null,null,null,"Сведения об отпуске (передаче) электроэнергии распределительными сетевыми организациями отдельным категориям потребителей"]
[null,null,null,{"$f":"IF(org=\"\",\"Не определено\",org)","v":"АО \"Самарская кабельная компания\""}]
[null,null,null,null,null,null,null,null,null,null,"Коды по ОКЕИ: 1000 киловатт-часов – 246, мегаватт – 215, тысяча рублей – 384"]
[null,null,null,"№ п/п","Наименование показателя","Код строки","Всего","В том числе по уровню напряжения"]
[null,null,null,null,null,null,null,"ВН","СН1","СН2","НН"]
[null,null,null,0,1,2,3,4,5,6,7]
[null,null,null,"I. Электроэнергия (тыс. кВт ч)"]
[null,null,null,"1","Поступление в сеть из других организаций:",10,{"$f":"SUM(H15:K15)","v":2926.136},{"$f":"H16+H17+H20+H23","v":2926.136},{"$f":"I16+I17+I20+I23","v":0},{"$f":"J16+J17+J20+J23","v":0},{"$f":"K16+K17+K20+K23","v":0},null,null,null,null,10]
[null,null,null,"1.1","из сетей ПАО \"ФСК ЕЭС\"",20,{"$f":"SUM(H16:K16)","v":0},null,null,null,null,null,null,null,null,20]
[null,null,null,"1.2","от генерирующих компаний и блок-станций:",30,0,{"$f":"SUM(H18:H19)","v":0},{"$f":"SUM(I18:I19)","v":0},{"$f":"SUM(J18:J19)","v":0},{"$f":"SUM(K18:K19)","v":0},null,null,null,null,30]
[null,null,null,"1.2.0",null,"30"]
[null,null,null,null,"Добавить организацию"]
[null,null,null,"1.3","от несетевых организаций:","230",0,{"$f":"SUM(H21:H22)","v":0},{"$f":"SUM(I21:I22)","v":0},{"$f":"SUM(J21:J22)","v":0},{"$f":"SUM(K21:K22)","v":0}]
[null,null,null,"1.3.0",null,"230"]
[null,null,null,null,"Добавить организацию"]
[null,null,null,"1.4","от смежных сетевых организаций:","430",2926.136,{"$f":"SUM(H24:H26)","v":2926.136},{"$f":"SUM(I24:I26)","v":0},{"$f":"SUM(J24:J26)","v":0},{"$f":"SUM(K24:K26)","v":0},null,null,null,null,40]
[null,null,null,"1.4.0",null,"430"]
[null,null,"О","1.4.1","ПАО \"МРСК Волги\"",431,{"$f":"SUM(H25:K25)","v":2926.136},2926.136,null,null,null,null,"6450925977","645001001","26809138"]
[null,null,null,null,"Добавить организацию"]
[null,null,null,"2","Поступление в сеть из других уровней напряжения (трансформация)","630",779.9507187118304,{"$f":"H29+H30+H31","v":0},{"$f":"I28+I30+I31","v":0},{"$f":"J28+J29+J31","v":661.99299827034019},{"$f":"K28+K29+K30","v":117.95772044149018},null,null,null,null,50]
[null,null,null,"2.1","ВН","640",661.99299827034019,null,null,{"$f":"H25-H46-H33-H47","v":661.99299827034019},null,null,null,null,null,60]
[null,null,null,"2.2","СН1","650",0,null,null,null,null,null,null,null,null,70]
[null,null,null,"2.3","СН2","660",117.95772044149018,null,null,null,{"$f":"J27-J33-J47","v":117.95772044149018},null,null,null,null,80]
[null,null,null,"2.4","НН ","670",0,null,null,null,null,null,null,null,null,90]
[null,null,null,"3","Генерация на установках организации (совмещение деятельности)","680",0]
[null,null,null,"4","Отпуск из сети:","690",599.87400000000002,{"$f":"H34+H36+H39+H43","v":0},{"$f":"I34+I36+I39+I43","v":0},{"$f":"J34+J36+J39+J43","v":492.98500000000001},{"$f":"K34+K36+K39+K43","v":106.889},null,null,null,null,100]
[null,null,null,"4.1","прямым прочим потребителям по договорам оказания услуг по передаче электрической энергии, в том числе:","700",0]
[null,null,null,"4.1.1","потребителям, опосредованно подключенным к шинам генераторов","710",0]
[null,null,null,"4.2","потребителям ГП, ЭСО, ЭСК, в том числе:","720",359.20600000000002,null,null,{"$f":"J37","v":343.62299999999999},{"$f":"K37","v":15.583}]
[null,null,null,"4.2.1","прочим потребителям, в том числе:","730",359.20600000000002,null,null,{"$f":"'[1]2018 год '!$E$40/1000","v":343.62299999999999},{"$f":"('[1]2018 год '!$E$41+'[1]2018 год '!$E$42)/1000","v":15.583}]
[null,null,null,"4.2.1.1","потребителям, опосредованно подключенным к шинам генераторов","740",0]
[null,null,null,"4.3","смежным сетевым организациям:","750",141.322,{"$f":"SUM(H40:H42)","v":0},{"$f":"SUM(I40:I42)","v":0},{"$f":"SUM(J40:J42)","v":141.322},{"$f":"SUM(K40:K42)","v":0}]
[null,null,null,"4.3.0",null,"750"]
[null,null,"О","4.3.1","ООО \"СамараСеть\"",751,{"$f":"SUM(H41:K41)","v":141.322},null,null,{"$f":"'[1]2018 год '!$J$40/1000","v":141.322},null,null,"6316128600","631601001","28798366"]
[null,null,null,null,"Добавить организацию"]
[null,null,null,"4.4","населению и приравненным к нему категориям","950",99.346000000000004,null,null,{"$f":"'[1]2018 год '!$D$40/1000","v":8.0399999999999991},{"$f":"'[1]2018 год '!$D$41/1000","v":91.305999999999997},null,null,null,null,120]
[null,null,null,"5","Отпуск в сеть других уровней напряжения","960",779.9507187118304,{"$f":"J28","v":661.99299827034019},null,{"$f":"J27-J33-J49","v":117.95772044149018},null,null,null,null,null,150]
[null,null,null,"6","Хозяйственные нужды организации","970",0,null,null,null,null,null,null,null,null,160]
[null,null,null,"7","Собственное потребление (совмещение деятельности)","980",2264.1430017296598,2264.1430017296598,null,null,null,null,null,null,null,180]
[null,null,null,"8","Общий объем потерь (фактические объемы), в том числе:","990",62.118998270340001,null,null,{"$f":"J49","v":51.05027782885},{"$f":"K49","v":11.068720441489999},null,null,null,null,190]
[null,null,null,"8.1","относимые на собственное потребление (фактическое значение)","1000",0,null,null,null,null,null,null,null,null,200]
[null,null,null,"9","Нормативные потери (объемы потерь учтенные в сводном прогнозном балансе)","1010",62.118998270340001,null,null,{"$f":"'[1]2018 год '!$Q$40/1000","v":51.05027782885},{"$f":"'[1]2018 год '!$Q$41/1000","v":11.068720441489999}]
[null,null,null,"10","Объем превышения фактических объемов потерь электрической энергии над объемами потерь, учтенными в сводном прогнозном балансе за соответствующий расчетный период","1020",0,{"$f":"H47-H49","v":0},{"$f":"I47-I49","v":0},{"$f":"J47-J49","v":0},{"$f":"K47-K49","v":0}]
[null,null,null,"11","Небаланс","1030",1.8474111129762605E-13,{"$f":"(H15+H27+H32)-(H33+H44+H45+H46+H47)","v":0},{"$f":"(I15+I27+I32)-(I33+I44+I45+I46+I47)","v":0},{"$f":"(J15+J27+J32)-(J33+J44+J45+J46+J47)","v":0},{"$f":"(K15+K27+K32)-(K33+K44+K45+K46+K47)","v":1.8474111129762605E-13},null,null,null,null,210]
[null,null,null,"II. Мощность (МВт)"]
[null,null,null,"12","Поступление в сеть из других организаций:","1040",4.5296222910216715,{"$f":"H54+H55+H58+H61","v":4.5296222910216715},{"$f":"I54+I55+I58+I61","v":0},{"$f":"J54+J55+J58+J61","v":0},{"$f":"K54+K55+K58+K61","v":0},null,null,null,null,300]
[null,null,null,"12.1","из сетей ПАО \"ФСК ЕЭС\"","1050",0,null,null,null,null,null,null,null,null,310]
[null,null,null,"12.2","от генерирующих компаний и блок-станций:","1060",0,{"$f":"SUM(H56:H57)","v":0},{"$f":"SUM(I56:I57)","v":0},{"$f":"SUM(J56:J57)","v":0},{"$f":"SUM(K56:K57)","v":0},null,null,null,null,320]
[null,null,null,"12.2.0",null,"1060"]
[null,null,null,null,"Добавить организацию"]
[null,null,null,"12.3","от несетевых организаций:","1260",0,{"$f":"SUM(H59:H60)","v":0},{"$f":"SUM(I59:I60)","v":0},{"$f":"SUM(J59:J60)","v":0},{"$f":"SUM(K59:K60)","v":0}]
[null,null,null,"12.3.0",null,"1260"]
[null,null,null,null,"Добавить организацию"]
[null,null,null,"12.4","от смежных сетевых организаций:","1460",4.5296222910216715,{"$f":"SUM(H62:H64)","v":4.5296222910216715},{"$f":"SUM(I62:I64)","v":0},{"$f":"SUM(J62:J64)","v":0},{"$f":"SUM(K62:K64)","v":0},null,null,null,null,330]
[null,null,null,"12.4.0",null,"1460"]
[null,null,"О","12.4.1","ПАО \"МРСК Волги\"",1461,{"$f":"SUM(H63:K63)","v":4.5296222910216715},{"$f":"H25/(646)","v":4.5296222910216715},null,null,null,null,"6450925977","645001001","26809138"]
[null,null,null,null,"Добавить организацию"]
[null,null,null,"13","Поступление в сеть из других уровней напряжения (трансформация)","1660",1.2073540537334837,{"$f":"H67+H68+H69","v":0},{"$f":"I66+I68+I69","v":0},{"$f":"J66+J67+J69","v":1.0247569632667806},{"$f":"K66+K67+K68","v":0.18259709046670305},null,null,null,null,340]
[null,null,null,"13.1","ВН","1670",1.0247569632667806,null,null,{"$f":"J28/646","v":1.0247569632667806},null,null,null,null,null,350]
[null,null,null,"13.2","СН1","1680",0,null,null,null,null,null,null,null,null,360]
[null,null,null,"13.3","СН2","1690",0.18259709046670305,null,null,null,{"$f":"K30/646","v":0.18259709046670305},null,null,null,null,370]
[null,null,null,"13.4","НН ","1700",0,null,null,null,null,null,null,null,null,380]
[null,null,null,"14","Генерация на установках организации (совмещение деятельности)","1710",0]
[null,null,null,"15","Отпуск из сети:","1720",0.92859752321981426,{"$f":"H72+H74+H77+H81","v":0},{"$f":"I72+I74+I77+I81","v":0},{"$f":"J72+J74+J77+J81","v":0.76313467492260068},{"$f":"K72+K74+K77+K81","v":0.16546284829721361},null,null,null,null,390]
[null,null,null,"15.1","прямым прочим потребителям по договорам оказания услуг по передаче электрической энергии, в том числе:","1730",0]
[null,null,null,"15.1.1","потребителям, опосредованно подключенным к шинам генераторов","1740",0]
[null,null,null,"15.2","потребителям ГП, ЭСО, ЭСК, в том числе:","1750",0.55604643962848299,null,null,{"$f":"J36/646","v":0.53192414860681114},{"$f":"K36/646","v":2.4122291021671828E-2}]
[null,null,null,"15.2.1","прочим потребителям, в том числе:","1760",0.55604643962848299,null,null,{"$f":"J74","v":0.53192414860681114},{"$f":"K74","v":2.4122291021671828E-2}]
[null,null,null,"15.2.1.1","потребителям, опосредованно подключенным к шинам генераторов","1770",0]
[null,null,null,"15.3","смежным сетевым организациям:","1780",0.21876470588235294,{"$f":"SUM(H78:H80)","v":0},{"$f":"SUM(I78:I80)","v":0},{"$f":"SUM(J78:J80)","v":0.21876470588235294},{"$f":"SUM(K78:K80)","v":0}]
[null,null,null,"15.3.0",null,"1780"]
[null,null,"О","15.3.1","ООО \"СамараСеть\"",1781,{"$f":"SUM(H79:K79)","v":0.21876470588235294},null,null,{"$f":"J41/646","v":0.21876470588235294},null,null,"6316128600","631601001","28798366"]
[null,null,null,null,"Добавить организацию"]
[null,null,null,"15.4","населению и приравненным к нему категориям","1980",0.15378637770897832,null,null,{"$f":"J43/646","v":1.2445820433436531E-2},{"$f":"K43/646","v":0.14134055727554179},null,null,null,null,410]
[null,null,null,"16","Отпуск в сеть других уровней напряжения","1990",1.2073540537334837,{"$f":"H44/646","v":1.0247569632667806},null,{"$f":"J65-J71-J87","v":0.18259709046670311},null,null,null,null,null,440]
[null,null,null,"17","Хозяйственные нужды организации","2000",0,null,null,null,null,null,null,null,null,450]
[null,null,null,"18","Собственное потребление (совмещение деятельности)","2010",3.5048653277548913,{"$f":"H46/646","v":3.5048653277548913},null,null,null,null,null,null,null,470]
[null,null,null,"19","Общий объем потерь (фактические объемы), в том числе:","2020",9.6159440046965944E-2,null,null,{"$f":"J87","v":7.9025197877476777E-2},{"$f":"K87","v":1.7134242169489163E-2},null,null,null,null,480]
[null,null,null,"19.1","относимые на собственное потребление","2030",0,null,null,null,null,null,null,null,null,490]
[null,null,null,"20","Нормативные потери (объемы потерь учтенные в сводном прогнозном балансе)","2040",9.6159440046965944E-2,null,null,{"$f":"J49/646","v":7.9025197877476777E-2},{"$f":"K49/646","v":1.7134242169489163E-2}]
[null,null,null,"21","Объем превышения фактических объемов потерь электрической энергии над объемами потерь, учтенными в сводном прогнозном балансе за соответствующий расчетный период","2050",0,{"$f":"H85-H87","v":0},{"$f":"I85-I87","v":0},{"$f":"J85-J87","v":0},{"$f":"K85-K87","v":0}]
[null,null,null,"22","Небаланс","2060",2.7755575615628914E-16,{"$f":"(H53+H65+H70)-(H71+H82+H83+H84+H85)","v":0},{"$f":"(I53+I65+I70)-(I71+I82+I83+I84+I85)","v":0},{"$f":"(J53+J65+J70)-(J71+J82+J83+J84+J85)","v":0},{"$f":"(K53+K65+K70)-(K71+K82+K83+K84+K85)","v":2.7755575615628914E-16},null,null,null,null,500]
[null,null,null,"III. Мощность (МВт)"]
[null,null,null,"23","Заявленная мощность","2070",0.9244,null,null,0.6653,0.2591,null,null,null,null,600]
[null,null,null,"24","Максимальная мощность","2080",0.9244,null,null,0.6653,0.2591,null,null,null,null,610]
[null,null,null,"25","Резервируемая мощность","2090",0,null,null,null,null,null,null,null,null,620]
[null,null,null,"IV. Фактический полезный отпуск конечным потребителям (тыс. кВт ч; МВт)"]
[null,null,null,"26","Полезный отпуск конечным потребителям (тыс. кВт ч):","2100",0,{"$f":"SUM(H96:H97)","v":0},{"$f":"SUM(I96:I97)","v":0},{"$f":"SUM(J96:J97)","v":0},{"$f":"SUM(K96:K97)","v":0},null,null,null,null,700]
[null,null,null,"26.1","по одноставочному тарифу","2110",0,null,null,null,null,null,null,null,null,710]
[null,null,null,"26.2","по двухставочному тарифу:","2120",0,{"$f":"H100","v":0},{"$f":"I100","v":0},{"$f":"J100","v":0},{"$f":"K100","v":0},null,null,null,null,720]
[null,null,null,"26.2.1","мощность (МВт), в том числе:","2130",0,null,null,null,null,null,null,null,null,730]
[null,null,null,"26.2.1.1","опосредованно подключенным к шинам генераторов (МВт)","2140",0]
[null,null,null,"26.2.2","компенсация потерь (тыс. кВт ч)","2150",0,null,null,null,null,null,null,null,null,740]
[null,null,null,"27","Полезный отпуск потребителям ГП, ЭСО (тыс. кВт ч):","2160",458.55200000000002,{"$f":"H102+H118","v":0},{"$f":"I102+I118","v":0},{"$f":"J102+J118","v":351.66300000000001},{"$f":"K102+K118","v":106.889},null,null,null,null,750]
[null,null,null,"27.1","по одноставочному тарифу:","2170",457.22300000000001,{"$f":"H103+H104","v":0},{"$f":"I103+I104","v":0},{"$f":"J103+J104","v":351.66300000000001},{"$f":"K103+K104","v":105.56},null,null,null,null,760]
[null,null,null,"27.1.1","прочим потребителям","2180",357.87700000000001,null,null,{"$f":"'[1]2018 год '!$E$40/1000","v":343.62299999999999},{"$f":"'[1]2018 год '!$E$41/1000","v":14.254}]
[null,null,null,"27.1.2","населению и приравненным к нему категориям потребителей:","2190",99.346000000000004,{"$f":"H105+H108+H111+H114+H115+H116+H117","v":0},{"$f":"I105+I108+I111+I114+I115+I116+I117","v":0},{"$f":"J105+J108+J111+J114+J115+J116+J117","v":8.0399999999999991},{"$f":"K105+K108+K111+K114+K115+K116+K117","v":91.305999999999997}]
[null,null,null,"27.1.2.1","Населению, проживающему в городских населенных пунктах в домах, не оборудованных в установленном порядке стационарными электроплитами и (или) электроотопительными установками и приравненным к нему категориям потребителей:","2200",8.6020000000000003,{"$f":"H106+H107","v":0},{"$f":"I106+I107","v":0},{"$f":"J106+J107","v":0},{"$f":"K106+K107","v":8.6020000000000003}]
[null,null,null,"27.1.2.1.1","в пределах социальной нормы потребления","2210",8.6020000000000003,null,null,null,8.6020000000000003]
[null,null,null,"27.1.2.1.2","сверх социальной нормы потребления","2220",0]
[null,null,null,"27.1.2.2","Населению, проживающему в городских населенных пунктах в домах, оборудованных в установленном порядке стационарными электроплитами и электроотопительными установками и приравненным к нему категориям потребителей:","2230",82.703999999999994,{"$f":"H109+H110","v":0},{"$f":"I109+I110","v":0},{"$f":"J109+J110","v":0},{"$f":"K109+K110","v":82.703999999999994}]
[null,null,null,"27.1.2.2.1","в пределах социальной нормы потребления","2240",82.703999999999994,null,null,null,82.703999999999994]
[null,null,null,"27.1.2.2.2","сверх социальной нормы потребления","2250",0]
[null,null,null,"27.1.2.3","Населению, проживающему в сельских населенных пунктах и приравненным к нему потребителям:","2260",0,{"$f":"H112+H113","v":0},{"$f":"I112+I113","v":0},{"$f":"J112+J113","v":0},{"$f":"K112+K113","v":0}]
[null,null,null,"27.1.2.3.1","в пределах социальной нормы потребления","2270",0]
[null,null,null,"27.1.2.3.2","сверх социальной нормы потребления","2280",0]
[null,null,null,"27.1.2.4","Садоводческим, огородническим или дачным некоммерческим объединениям граждан","2290",0]
[null,null,null,"27.1.2.5","Религиозным организациям","2300",0]
[null,null,null,"27.1.2.6","Юридическим лицам приобретающим электроэнергию в целях потребления на коммунально-бытовые нужды в населенных пунктах, жилых зонах при воинских частях и в целях потребления осужденными в помещениях для их содержания","2310",0]
[null,null,null,"27.1.2.7","Некоммерческим объединениям граждан (гаражно-строительные, гаражные кооперативы) и хозяйственные постройки физических лиц","2320",8.0399999999999991,null,null,8.0399999999999991]
[null,null,null,"27.2","по двухставочному тарифу (прочие потребители):","2330",1.329,{"$f":"H121","v":0},{"$f":"I121","v":0},{"$f":"J121","v":0},{"$f":"K121","v":1.329},null,null,null,null,770]
[null,null,null,"27.2.1","мощность (МВт), в том числе:","2340",1.905E-3,null,null,null,1.905E-3,null,null,null,null,780]
[null,null,null,"27.2.1.1"," опосредованно подключенным к шинам генераторов (МВт)","2350",0]
[null,null,null,"27.2.2","компенсация потерь (тыс. кВт ч)","2360",1.329,null,null,null,1.329,null,null,null,null,790]
[null,null,null,"28","Оплачиваемый сетевыми организациями объем оказанных услуг по индивидуальному тарифу:","2370",141.322,{"$f":"SUM(H123:H124)","v":0},{"$f":"SUM(I123:I124)","v":0},{"$f":"SUM(J123:J124)","v":141.322},{"$f":"SUM(K123:K124)","v":0}]
[null,null,null,"28.1","по одноставочному тарифу","2380",141.322,null,null,{"$f":"J41","v":141.322}]
[null,null,null,"28.2","по двухставочному тарифу:","2390",0,{"$f":"H126","v":0},{"$f":"I126","v":0},{"$f":"J126","v":0},{"$f":"K126","v":0}]
[null,null,null,"28.2.1","мощность (МВт)","2400",0]
[null,null,null,"28.2.2","компенсация потерь (тыс. кВт ч)","2410",0]
[null,null,null,"V. Стоимость услуг (тыс. руб.)"]
[null,null,null,"29","Стоимость услуг, оплачиваемая потребителями (конечными потребителями по прямым договорам и ТСО):","2420",0,{"$f":"SUM( H129:H130)","v":0},{"$f":"SUM( I129:I130)","v":0},{"$f":"SUM( J129:J130)","v":0},{"$f":"SUM( K129:K130)","v":0},null,null,null,null,800]
[null,null,null,"29.1","по одноставочному тарифу","2430",0,null,null,null,null,null,null,null,null,810]
[null,null,null,"29.2","по двухставочному тарифу:","2440",0,{"$f":"H131+H133","v":0},{"$f":"I131+I133","v":0},{"$f":"J131+J133","v":0},{"$f":"K131+K133","v":0},null,null,null,null,820]
[null,null,null,"29.2.1","мощность, в том числе:","2450",0,null,null,null,null,null,null,null,null,830]
[null,null,null,"29.2.1.1","опосредованно потребителям с шин генераторов","2460",0]
[null,null,null,"29.2.2","компенсация потерь","2470",0,null,null,null,null,null,null,null,null,840]
[null,null,null,"30","Стоимость услуг, оплачиваемая ГП, ЭСО:","2480",1264.2400500000001,{"$f":"SUM( H135+H140)","v":0},{"$f":"SUM( I135+I140)","v":0},{"$f":"SUM( J135+J140)","v":1110.6626900000001},{"$f":"SUM( K135+K140)","v":153.57736},null,null,null,null,850]
[null,null,null,"30.1","по одноставочному тарифу","2490",{"$f":"SUM(H135:K135)","v":1258.6596400000001},{"$f":"SUM( H136:H137)","v":0},{"$f":"SUM( I136:I137)","v":0},{"$f":"SUM( J136:J137)","v":1110.6626900000001},{"$f":"SUM( K136:K137)","v":147.99695},null,null,null,null,860]
[null,null,null,"30.1.1","прочим потребителям","2500",1160.3164200000001,null,null,1096.0803900000001,64.23603]
[null,null,null,"30.1.2","населению и приравненным к нему категориям потребителей:","2510",98.343220000000002,{"$f":"H138+H139","v":0},{"$f":"I138+I139","v":0},{"$f":"J138+J139","v":14.5823},{"$f":"K138+K139","v":83.760919999999999}]
[null,null,null,"30.1.2.1","в пределах социальной нормы потребления","2520",98.343220000000002,null,null,14.5823,{"$f":"15.60161+68.15931","v":83.760919999999999}]
[null,null,null,"30.1.2.2","сверх социальной нормы потребления ","2530",0]
[null,null,null,"30.2","по двухставочному тарифу (прочие потребители):","2540",5.5804099999999996,{"$f":"H141+H143","v":0},{"$f":"I141+I143","v":0},{"$f":"J141+J143","v":0},{"$f":"K141+K143","v":5.5804099999999996},null,null,null,null,870]
[null,null,null,"30.2.1","мощность, в том числе:","2550",4.3587699999999998,null,null,null,4.3587699999999998,null,null,null,null,880]
[null,null,null,"30.2.1.1","опосредованно потребителям с шин генераторов","2560",0]
[null,null,null,"30.2.2","компенсация потерь","2570",1.2216400000000001,null,null,null,1.2216400000000001,null,null,null,null,890]
[null,null,null,"31","Стоимость услуг, оплачиваемых сетевыми организациями по индивидуальному тарифу:","2580",0,{"$f":"SUM( H145:H146)","v":0},{"$f":"SUM( I145:I146)","v":0},{"$f":"SUM( J145:J146)","v":0},{"$f":"SUM( K145:K146)","v":0},null,null,null,null,900]
[null,null,null,"31.1","по одноставочному тарифу","2590",0]
[null,null,null,"31.2","по двухставочному тарифу:","2600",0,{"$f":"H147+H148","v":0},{"$f":"I147+I148","v":0},{"$f":"J147+J148","v":0},{"$f":"K147+K148","v":0}]
[null,null,null,"31.2.1","мощность","2610",0,null,null,null,null,null,null,null,null,"920"]
[null,null,null,"31.2.2","компенсация потерь","2620",0,null,null,null,null,null,null,null,null,"910"]
[]
[null,null,null,null,"Должностное лицо, ответственное за",{"$f":"IF(Титульный!G45=\"\",\"\",Титульный!G45)","v":"инженер ОГЭ"},null,null,{"$f":"IF(Титульный!G44=\"\",\"\",Титульный!G44)","v":"Круглова Татьяна Владимировна"}]
[null,null,null,null,"предоставление статистической информации","(должность)",null,null,"(Ф.И.О.)",null,null,null,"(подпись)"]
[null,null,null,null,"(лицо, уполномоченное предоставлять"]
[null,null,null,null,"статистическую информацию от имени",{"$f":"IF(Титульный!G46=\"\",\"\",Титульный!G46)","v":"(846) 228-24-57"},null,null,null,"«____» _________20__ год"]
[null,null,null,null,"юридического лица)","(номер контактного телефона)",null,null,null,"(дата составления документа)"]

{"sheet":"Комментарии","index":4,"n_rows":17,"n_cols":5,"rows_kept":17,"cut":false,"hidden":false,"merged":[]}
[]
[]
[]
[]
[]
[]
[]
[null,null,null,"Комментарии"]
[null,null,null,{"$f":"IF(org=\"\",\"Не определено\",org)","v":"АО \"Самарская кабельная компания\""}]
[]
[null,null,null,"№ п/п","Комментарий"]
[null,null,null,1,2]
[null,null,null,0]
[null,null,"О",1,"Стоимость услуг (с учетом НДС) по передаче эл.энергии, выставленных ПАО \"МРСК Волги\" за ноябрь 2018 г. в адрес  АО \"СКК\" составляет 444,77217 тыс.  руб."]
[null,null,"О",2,"Стоимость услуг (с учетом НДС) по передаче эл.энергии, выставленных ООО \"СамараСеть\" за ноябрь 2018 г. в адрес  АО \"СКК\" составляет 82,63623 тыс.  руб."]
[null,null,"О",3,"Стоимость эл.эн., приобретаемой в целях компенсации потерь на потребителей у ПАО \"Самараэнерго\" за ноябрь 2018 года составили 161,85768 тыс.руб. Цены указаны с учетом НДС."]
[null,null,null,null,"Добавить комментарий"]

{"sheet":"Проверка","index":5,"n_rows":5,"n_cols":4,"rows_kept":5,"cut":false,"hidden":false,"merged":[[1,1,1,3]]}
[]
[null,"Результат проверки"]
[null,{"$f":"IF(org=\"\",\"Не определено\",org)","v":"АО \"Самарская кабельная компания\""}]
[]
[null,"Ссылка","Причина","Статус"]

{"sheet":"Statistic","index":6,"n_rows":44,"n_cols":3,"rows_kept":44,"cut":false,"hidden":true,"merged":[]}
[44]
["06.09.2018 19:26:20","14.0","Windows (32-bit) NT 6.01"]
["11.09.2018 18:16:52","14.0","Windows (32-bit) NT 6.01"]
["11.09.2018 20:57:11","14.0","Windows (32-bit) NT 6.01"]
["12.09.2018 09:35:26","14.0","Windows (32-bit) NT 6.01"]
["12.09.2018 10:24:58","14.0","Windows (32-bit) NT 6.01"]
["12.09.2018 16:27:05","14.0","Windows (32-bit) NT 6.01"]
["13.09.2018 15:09:23","14.0","Windows (32-bit) NT 6.01"]
["13.09.2018 16:04:22","14.0","Windows (32-bit) NT 6.01"]
["13.09.2018 16:05:18","14.0","Windows (32-bit) NT 6.01"]
["13.09.2018 19:14:38","14.0","Windows (32-bit) NT 6.01"]
["14.09.2018 11:13:01","14.0","Windows (32-bit) NT 6.01"]
["14.09.2018 11:18:37","14.0","Windows (32-bit) NT 6.01"]
["17.09.2018 21:09:54","14.0","Windows (32-bit) NT 6.01"]
["18.09.2018 10:38:31","14.0","Windows (32-bit) NT 6.01"]
["18.09.2018 12:43:39","14.0","Windows (32-bit) NT 6.01"]
["18.09.2018 12:47:52","14.0","Windows (32-bit) NT 6.01"]
["18.09.2018 12:54:00","14.0","Windows (32-bit) NT 6.01"]
["18.09.2018 12:57:51","14.0","Windows (32-bit) NT 6.01"]
["18.09.2018 13:09:47","14.0","Windows (32-bit) NT 6.01"]
["18.09.2018 13:11:28","14.0","Windows (32-bit) NT 6.01"]
["18.09.2018 13:28:28","14.0","Windows (32-bit) NT 6.01"]
["18.09.2018 15:52:57","14.0","Windows (32-bit) NT 6.01"]
["18.09.2018 17:01:38","14.0","Windows (32-bit) NT 6.01"]
["18.09.2018 18:14:48","14.0","Windows (32-bit) NT 6.01"]
["19.09.2018 16:09:09","14.0","Windows (32-bit) NT 6.01"]
["19.09.2018 18:23:43","14.0","Windows (32-bit) NT 6.01"]
["20.09.2018 10:53:47","14.0","Windows (32-bit) NT 6.01"]
["20.09.2018 11:00:09","14.0","Windows (32-bit) NT 6.01"]
["20.09.2018 11:51:55","14.0","Windows (32-bit) NT 6.01"]
["20.09.2018 12:24:20","14.0","Windows (32-bit) NT 6.01"]
["20.09.2018 15:06:45","14.0","Windows (32-bit) NT 6.01"]
["20.09.2018 15:26:56","14.0","Windows (32-bit) NT 6.01"]
["21.09.2018 13:25:15","14.0","Windows (32-bit) NT 6.01"]
["21.09.2018 15:22:58","14.0","Windows (32-bit) NT 6.01"]
["21.09.2018 15:42:42","14.0","Windows (32-bit) NT 6.01"]
["21.09.2018 16:03:56","14.0","Windows (32-bit) NT 6.01"]
["21.09.2018 20:18:40","14.0","Windows (32-bit) NT 6.01"]
["22.09.2018 17:11:07","14.0","Windows (32-bit) NT 6.01"]
["23.09.2018 20:21:15","14.0","Windows (32-bit) NT 6.01"]
["05.12.2018 08:29:25","12.0","Windows (32-bit) NT 6.02"]
["11.12.2018 11:03:02","11.0","Windows (32-bit) NT 5.01"]
["24.12.2018 08:32:12","11.0","Windows (32-bit) NT 5.01"]
["25.12.2018 09:15:42","11.0","Windows (32-bit) NT 5.01"]

{"sheet":"TEHSHEET","index":7,"n_rows":86,"n_cols":7,"rows_kept":86,"cut":false,"hidden":true,"merged":[]}
[null,"Алтайский край",null,"MONTH","YEAR","DaNet","type_report"]
[0,"Амурская область",null,"январь",2018,"Да","В целом по организации"]
[null,"Архангельская область",null,"февраль",2019,"Нет","По обособленному подразделению"]
[null,"Астраханская область",null,"март",2020]
[null,"Белгородская область",null,"апрель",2021]
[null,"Брянская область",null,"май",2022]
[null,"Владимирская область",null,"июнь"]
[null,"Волгоградская область",null,"июль"]
[null,"Вологодская область",null,"август"]
[null,"Воронежская область",null,"сентябрь"]
[null,"г.Байконур",null,"октябрь"]
[null,"г. Москва",null,"ноябрь"]
[null,"г.Санкт-Петербург",null,"декабрь"]
[null,"г.Севастополь",null,"год"]
[null,"Еврейская автономная область"]
[null,"Забайкальский край"]
[null,"Ивановская область"]
[null,"Иркутская область"]
[null,"Кабардино-Балкарская республика"]
[null,"Калининградская область"]
[null,"Калужская область"]
[null,"Камчатский край",null,"URL_FORMAT"]
[null,"Карачаево-Черкесская республика",null,"https://portal.eias.ru/Portal/DownloadPage.aspx?type=12&guid=????????-????-????-????-????????????"]
[null,"Кемеровская область",null,"MSG_URL"]
[null,"Кировская область",null,{"$f":"\"Необходимо ввести ссылку на обосновывающие материалы в формате: \"\"\" & URL_FORMAT & \"\"\" (смотри раздел \"\"Методология заполнения\"\" листа \"\"Инструкция\"\")\"","v":"Необходимо ввести ссылку на обосновывающие материалы в формате: \"https://portal.eias.ru/Portal/DownloadPage.aspx?type=12&guid=????????-????-????-????-????????????\" (смотри раздел \"Методология заполнения\" листа \"Инструкция\")"}]
[null,"Костромская область"]
[null,"Краснодарский край"]
[null,"Красноярский край"]
[null,"Курганская область"]
[null,"Курская область"]
[null,"Ленинградская область"]
[null,"Липецкая область"]
[null,"Магаданская область"]
[null,"Московская область"]
[null,"Мурманская область"]
[null,"Ненецкий автономный округ"]
[null,"Нижегородская область"]
[null,"Новгородская область"]
[null,"Новосибирская область"]
[null,"Омская область"]
[null,"Оренбургская область"]
[null,"Орловская область"]
[null,"Пензенская область"]
[null,"Пермский край"]
[null,"Приморский край"]
[null,"Псковская область"]
[null,"Республика Адыгея"]
[null,"Республика Алтай"]
[null,"Республика Башкортостан"]
[null,"Республика Бурятия"]
[null,"Республика Дагестан"]
[null,"Республика Ингушетия"]
[null,"Республика Калмыкия"]
[null,"Республика Карелия"]
[null,"Республика Коми"]
[null,"Республика Крым"]
[null,"Республика Марий Эл"]
[null,"Республика Мордовия"]
[null,"Республика Саха (Якутия)"]
[null,"Республика Северная Осетия-Алания"]
[null,"Республика Татарстан"]
[null,"Республика Тыва"]
[null,"Республика Хакасия"]
[null,"Ростовская область"]
[null,"Рязанская область"]
[null,"Самарская область"]
[null,"Саратовская область"]
[null,"Сахалинская область"]
[null,"Свердловская область"]
[null,"Смоленская область"]
[null,"Ставропольский край"]
[null,"Тамбовская область"]
[null,"Тверская область"]
[null,"Томская область"]
[null,"Тульская область"]
[null,"Тюменская область"]
[null,"Удмуртская республика"]
[null,"Ульяновская область"]
[null,"Хабаровский край"]
[null,"Ханты-Мансийский автономный округ"]
[null,"Челябинская область"]
[null,"Чеченская республика"]
[null,"Чувашская республика"]
[null,"Чукотский автономный округ"]
[null,"Ямало-Ненецкий автономный округ"]
[null,"Ярославская область"]

{"sheet":"et_union","index":8,"n_rows":5,"n_cols":7,"rows_kept":5,"cut":false,"hidden":true,"merged":[]}
[]
["et_com"]
[null,null,"О",1]
["et_org"]
[null,null,null,null,null,null,{"$f":"SUM(H5:K5)","v":0}]

{"sheet":"AllSheetsInThisWorkbook","index":9,"n_rows":24,"n_cols":2,"rows_kept":24,"cut":false,"hidden":true,"merged":[]}
["Расчетные листы","Скрытые листы"]
["Инструкция","Statistic"]
["Лог обновления","TEHSHEET"]
["Титульный","et_union"]
["Отпуск ЭЭ сет организациями","AllSheetsInThisWorkbook"]
["Комментарии","mod_01"]
["Проверка","mod_11"]
[null,"modComm"]
[null,"modListProv"]
[null,"modButton"]
[null,"modInstruction"]
[null,"modHTTP"]
[null,"REESTR_ORG"]
[null,"REESTR_FIL"]
[null,"REESTR_MO"]
[null,"REESTR_EGRUL"]
[null,"modfrmRegion"]
[null,"modfrmReestr"]
[null,"modfrmFindEGRUL"]
[null,"modfrmCheckUpdates"]
[null,"modReestr"]
[null,"modUpdTemplMain"]
[null,"modHyperlink"]
[null,"modClassifierValidate"]

{"sheet":"mod_01","index":10,"n_rows":0,"n_cols":0,"rows_kept":0,"cut":false,"hidden":true,"merged":[]}

{"sheet":"mod_11","index":11,"n_rows":0,"n_cols":0,"rows_kept":0,"cut":false,"hidden":true,"merged":[]}

{"sheet":"modComm","index":12,"n_rows":0,"n_cols":0,"rows_kept":0,"cut":false,"hidden":true,"merged":[]}

{"sheet":"modListProv","index":13,"n_rows":0,"n_cols":0,"rows_kept":0,"cut":false,"hidden":true,"merged":[]}

{"sheet":"modButton","index":14,"n_rows":0,"n_cols":0,"rows_kept":0,"cut":false,"hidden":true,"merged":[]}

{"sheet":"modInstruction","index":15,"n_rows":0,"n_cols":0,"rows_kept":0,"cut":false,"hidden":true,"merged":[]}

{"sheet":"modHTTP","index":16,"n_rows":0,"n_cols":0,"rows_kept":0,"cut":false,"hidden":true,"merged":[]}

{"sheet":"REESTR_ORG","index":17,"n_rows":165,"n_cols":18,"rows_kept":165,"cut":false,"hidden":true,"merged":[]}
[null,"REGION_ID","REGION_NAME","MR_NAME","OKTMR_NAME","MO_NAME","OKTMO_NAME","RST_ORG_ID","ORG_NAME","INN_NAME","KPP_NAME","ORG_START_DATE","ORG_END_DATE","VDET_START_DATE","VDET_END_DATE","VDET_NAME","VDET_NAME_LIST","VDET_FULL_NAME_LIST"]
[1,"2638","Самарская область",null,null,null,null,"26322473","АО \"Арконик СМЗ\"","6310000160","631050001",null,null,null,null,null,"РСО","/Электроэнергетика/Передача ЭЭ/РСО"]
[2,"2638","Самарская область",null,null,null,null,"26783848","АО \"Водоканал\"","6377011416","637701001","16-03-2010 00:00:00",null,null,null,null,"РСО","/Электроэнергетика/Передача ЭЭ/РСО"]
[3,"2638","Самарская область",null,null,null,null,"26448590","АО \"ЕЭСнК\"","7727232575","771401001",null,null,null,null,null,"Нерегулируемый сбыт","/Электроэнергетика/Сбыт ЭЭ/Нерегулируемый сбыт"]
[4,"2638","Самарская область",null,null,null,null,"26448590","АО \"ЕЭСнК\"","7727232575","771401001",null,null,null,null,null,"РСО","/Электроэнергетика/Передача ЭЭ/РСО"]
[5,"2638","Самарская область",null,null,null,null,"26485575","АО \"КНПЗ\"","6314006396","997250001","15-10-2002 00:00:00",null,null,null,null,"Комбинированная выработка :: Некомбинированная выработка","/Электроэнергетика/Производство ЭЭ/Комбинированная выработка :: /Электроэнергетика/Производство ЭЭ/Некомбинированная выработка"]
[6,"2638","Самарская область",null,null,null,null,"26485577","АО \"Международный аэропорт \"Курумоч\"","6313036408","631050001",null,null,null,null,null,"РСО","/Электроэнергетика/Передача ЭЭ/РСО"]
[7,"2638","Самарская область",null,null,null,null,"26318885","АО \"Межрегионэнергосбыт\"","7705750968","772901001",null,null,null,null,null,"Нерегулируемый сбыт","/Электроэнергетика/Сбыт ЭЭ/Нерегулируемый сбыт"]
[8,"2638","Самарская область",null,null,null,null,"26318876","АО \"Мосэнергосбыт\"","7736520080","997650001",null,null,null,null,null,"Нерегулируемый сбыт","/Электроэнергетика/Сбыт ЭЭ/Нерегулируемый сбыт"]
[9,"2638","Самарская область",null,null,null,null,"26485720","АО \"ННК\"","6330017980","631050001",null,null,null,null,null,"РСО","/Электроэнергетика/Передача ЭЭ/РСО"]
[10,"2638","Самарская область",null,null,null,null,"26485720","АО \"ННК\"","6330017980","631050001",null,null,null,null,null,"ГП :: Комбинированная выработка :: Некомбинированная выработка","/Электроэнергетика/Сбыт ЭЭ/ГП :: /Электроэнергетика/Производство ЭЭ/Комбинированная выработка :: /Электроэнергетика/Производство ЭЭ/Некомбинированная выработка"]
[11,"2638","Самарская область",null,null,null,null,"27321299","АО \"Оборонэнерго\" филиал \"Приволжский\"","7704726225","631743001",null,null,null,null,null,"РСО","/Электроэнергетика/Передача ЭЭ/РСО"]
[12,"2638","Самарская область",null,null,null,null,"26617350","АО \"Оборонэнергосбыт\"","7704731218","773043001","23-03-2010 00:00:00",null,null,null,null,"ГП","/Электроэнергетика/Сбыт ЭЭ/ГП"]
[13,"2638","Самарская область",null,null,null,null,"26501821","АО \"Оптовая электрическая компания\"","3444103821","344401001",null,null,null,null,null,"Нерегулируемый сбыт","/Электроэнергетика/Сбыт ЭЭ/Нерегулируемый сбыт"]
[14,"2638","Самарская область",null,null,null,null,"26322430","АО \"Похвистневоэнерго\"","6372020696","637201001",null,null,null,null,null,"РСО","/Электроэнергетика/Передача ЭЭ/РСО"]
[15,"2638","Самарская область",null,null,null,null,"26485687","АО \"РКЦ \"Прогресс\"","6312139922","997850001",null,null,null,null,null,"РСО","/Электроэнергетика/Передача ЭЭ/РСО"]
[16,"2638","Самарская область",null,null,null,null,"28823140","АО \"Самаранефтегаз\"","6315229162","997150001",null,null,null,null,null,"РСО","/Электроэнергетика/Передача ЭЭ/РСО"]
[17,"2638","Самарская область",null,null,null,null,"26322459","АО \"Самарская кабельная компания\"","6318101450","631801001",null,null,null,null,null,"РСО","/Электроэнергетика/Передача ЭЭ/РСО"]
[18,"2638","Самарская область",null,null,null,null,"26322440","АО \"Самарская сетевая компания\"","6367047389","631501001",null,null,null,null,null,"РСО","/Электроэнергетика/Передача ЭЭ/РСО"]
[19,"2638","Самарская область",null,null,null,null,"26448586","АО \"Сибурэнергоменеджмент\"","7727276526","366301001",null,null,null,null,null,"Нерегулируемый сбыт","/Электроэнергетика/Сбыт ЭЭ/Нерегулируемый сбыт"]
[20,"2638","Самарская область",null,null,null,null,"26322432","АО \"Сызранская городская электросеть\"","6325064706","632501001",null,null,null,null,null,"РСО","/Электроэнергетика/Передача ЭЭ/РСО"]
[21,"2638","Самарская область",null,null,null,null,"26772152","АО \"ТРАНСНЕФТЬ-ПРИКАМЬЕ\"","1645000340","590502001","15-06-2004 00:00:00",null,null,null,null,"Комбинированная выработка","/Электроэнергетика/Производство ЭЭ/Комбинированная выработка"]
[22,"2638","Самарская область",null,null,null,null,"28047458","АО \"Тольяттисинтез\"","6323106975","632401001",null,null,null,null,null,"РСО","/Электроэнергетика/Передача ЭЭ/РСО"]
[23,"2638","Самарская область",null,null,null,null,"30949378","АО \"Транснефть - Прикамье\" Ромашкинское РНУ","1645000340","164902000",null,null,null,null,null,"Комбинированная выработка","/Электроэнергетика/Производство ЭЭ/Комбинированная выработка"]
[24,"2638","Самарская область",null,null,null,null,"27831055","АО \"Электросеть-Волга\"","6313539056","631301001",null,null,null,null,null,"РСО","/Электроэнергетика/Передача ЭЭ/РСО"]
[25,"2638","Самарская область",null,null,null,null,"26485550","АО “Волгабурмаш”","6314041136","631401001",null,null,null,null,null,"РСО","/Электроэнергетика/Передача ЭЭ/РСО"]
[26,"2638","Самарская область",null,null,null,null,"26485717","АО “Новокуйбышевский нефтеперерабатывающий завод”","6330000553","997150001","15-10-2002 00:00:00",null,null,null,null,"Комбинированная выработка :: Некомбинированная выработка","/Электроэнергетика/Производство ЭЭ/Комбинированная выработка :: /Электроэнергетика/Производство ЭЭ/Некомбинированная выработка"]
[27,"2638","Самарская область",null,null,null,null,"26485717","АО “Новокуйбышевский нефтеперерабатывающий завод”","6330000553","997150001","15-10-2002 00:00:00",null,null,null,null,"РСО","/Электроэнергетика/Передача ЭЭ/РСО"]
[28,"2638","Самарская область",null,null,null,null,"26642616","АО “ОРЭС-Тольятти”","6166071494","632401001",null,null,null,null,null,"РСО","/Электроэнергетика/Передача ЭЭ/РСО"]
[29,"2638","Самарская область",null,null,null,null,"26485308","АО “РЭУ” “Самарский”","7714783092","631143001",null,null,null,null,null,"РСО","/Электроэнергетика/Передача ЭЭ/РСО"]
[30,"2638","Самарская область",null,null,null,null,"26495939","АО “САМАРСКИЙ ЗАВОД ЭЛЕКТРОМОНТАЖНЫХ ИЗДЕЛИЙ”","6318100022","631801001",null,null,null,null,null,"РСО","/Электроэнергетика/Передача ЭЭ/РСО"]
[31,"2638","Самарская область",null,null,null,null,"26495941","АО “САМАРСКИЙ КОМБИНАТ КЕРАМИЧЕСКИХ МАТЕРИАЛОВ”","6318101435","631701001",null,null,null,null,null,"РСО","/Электроэнергетика/Передача ЭЭ/РСО"]
[32,"2638","Самарская область",null,null,null,null,"26495867","АО “Самарагорэнергосбыт”","6316138990","631601001",null,null,null,null,null,"ГП","/Электроэнергетика/Сбыт ЭЭ/ГП"]
[33,"2638","Самарская область",null,null,null,null,"27331297","Акционерное общество \"Оборонэнерго\" - филиал \"Уральский\"","7704726225","667243001",null,null,null,null,null,"РСО","/Электроэнергетика/Передача ЭЭ/РСО"]
[34,"2638","Самарская область",null,null,null,null,"26318993","Акционерное общество \"Свердловская энергогазовая компания\", г.Екатеринбург","6670129804","665801001",null,null,null,null,null,"Нерегулируемый сбыт","/Электроэнергетика/Сбыт ЭЭ/Нерегулируемый сбыт"]
[35,"2638","Самарская область",null,null,null,null,"26495937","ГУЗ “Самарская психиатрическая больница”","6319011294","631901001",null,null,null,null,null,"РСО","/Электроэнергетика/Передача ЭЭ/РСО"]
[36,"2638","Самарская область",null,null,null,null,"26322464","ЗАО \"Самарский опытно-экспериментальный завод\"","6312000342","631201001",null,null,null,null,null,"РСО","/Электроэнергетика/Передача ЭЭ/РСО"]
[37,"2638","Самарская область",null,null,null,null,"26774814","ЗАО \"Энергетика и связь строительства","6320005633","632401001","16-08-2002 00:00:00",null,null,null,null,"РСО","/Электроэнергетика/Передача ЭЭ/РСО"]
[38,"2638","Самарская область",null,null,null,null,"26794617","ЗАО \"ЭнергоГарантСервис\"","6316153170","631601001",null,null,null,null,null,"РСО","/Электроэнергетика/Передача ЭЭ/РСО"]
[39,"2638","Самарская область",null,null,null,null,"26485187","ЗАО “Газэнергострой”","6315354893","631501001",null,null,null,null,null,"Комбинированная выработка :: Некомбинированная выработка","/Электроэнергетика/Производство ЭЭ/Комбинированная выработка :: /Электроэнергетика/Производство ЭЭ/Некомбинированная выработка"]
[40,"2638","Самарская область",null,null,null,null,"26642630","ЗАО “Дуплет”","6312084945","631201001",null,null,null,null,null,"РСО","/Электроэнергетика/Передача ЭЭ/РСО"]
[41,"2638","Самарская область",null,null,null,null,"26322428","ЗАО “САМАРСКИЕ ГОРОДСКИЕ ЭЛЕКТРИЧЕСКИЕ СЕТИ”","6316004884","631050001",null,null,null,null,null,"РСО","/Электроэнергетика/Передача ЭЭ/РСО"]
[42,"2638","Самарская область",null,null,null,null,"26485546","ЗАО “Самарский завод Нефтемаш”","6314007537","631401001",null,null,null,null,null,"РСО","/Электроэнергетика/Передача ЭЭ/РСО"]
[43,"2638","Самарская область",null,null,null,null,"26495943","ЗАО “Сызранская Керамика”","6325037100","632501001",null,null,null,null,null,"РСО","/Электроэнергетика/Передача ЭЭ/РСО"]
[44,"2638","Самарская область",null,null,null,null,"26495953","ЗАО “Энергоспецстрой”","6312055567","631201001",null,null,null,null,null,"РСО","/Электроэнергетика/Передача ЭЭ/РСО"]
[45,"2638","Самарская область",null,null,null,null,"26496069","Куйбышевская дирекция по энергообеспечению - структурное подразделение Трансэнерго - филиала ОАО \"РЖД\"","7708503727","631145010",null,null,null,null,null,"РСО","/Электроэнергетика/Передача ЭЭ/РСО"]
[46,"2638","Самарская область",null,null,null,null,"26322499","МП г.о. Самара “Самарский метрополитен”","6311013028","631101001",null,null,null,null,null,"РСО","/Электроэнергетика/Передача ЭЭ/РСО"]
[47,"2638","Самарская область",null,null,null,null,"26485191","МУП “Волжское ЖКХ”","6376002176","637601001",null,null,null,null,null,"РСО","/Электроэнергетика/Передача ЭЭ/РСО"]
[48,"2638","Самарская область",null,null,null,null,"26322469","ОАО \"Магистраль\"","6314007671","631401001",null,null,null,null,null,"РСО","/Электроэнергетика/Передача ЭЭ/РСО"]
[49,"2638","Самарская область",null,null,null,null,"26322424","ОАО \"Производственная компания автокомпонент Сызрань\"","6325001992","631050001",null,null,null,null,null,"РСО","/Электроэнергетика/Передача ЭЭ/РСО"]
[50,"2638","Самарская область",null,null,null,null,"26522960","ОАО \"Промышленная энергетика\"","7705736716","770501001",null,null,null,null,null,"Нерегулируемый сбыт","/Электроэнергетика/Сбыт ЭЭ/Нерегулируемый сбыт"]
[51,"2638","Самарская область",null,null,null,null,"26322476","ОАО \"СтройДом\"","6317020670","631701001",null,null,null,null,null,"РСО","/Электроэнергетика/Передача ЭЭ/РСО"]
[52,"2638","Самарская область",null,null,null,null,"26485670","ОАО “1253 ЦРБ РЛВ”","6313535005","631301001",null,null,null,null,null,"РСО","/Электроэнергетика/Передача ЭЭ/РСО"]
[53,"2638","Самарская область",null,null,null,null,"26322502","ОАО “Авиакор - авиационный завод”","6312040056","631201001",null,null,null,null,null,"РСО","/Электроэнергетика/Передача ЭЭ/РСО"]
[54,"2638","Самарская область",null,null,null,null,"26322503","ОАО “ВОЛГОЦЕММАШ”","6320001928","632001001",null,null,null,null,null,"РСО","/Электроэнергетика/Передача ЭЭ/РСО"]
[55,"2638","Самарская область",null,null,null,null,"26322471","ОАО “МЕТАЛЛИСТ-САМАРА”","6318105574","631801001",null,null,null,null,null,"РСО","/Электроэнергетика/Передача ЭЭ/РСО"]
[56,"2638","Самарская область",null,null,null,null,"26322474","ОАО “САМАРСКИЙ ПОДШИПНИКОВЫЙ ЗАВОД”","6318100431","631801001",null,null,null,null,null,"РСО","/Электроэнергетика/Передача ЭЭ/РСО"]
[57,"2638","Самарская область",null,null,null,null,"26642639","ОАО “САМАРСКИЙ ТРАНСФОРМАТОР”","6311012779","631101001",null,null,null,null,null,"РСО","/Электроэнергетика/Передача ЭЭ/РСО"]
[58,"2638","Самарская область",null,null,null,null,"26495947","ОАО “Связьтранснефть” (филиал - Средневолжское ПТУС)","7723011906","771501001",null,null,null,null,null,"РСО","/Электроэнергетика/Передача ЭЭ/РСО"]
[59,"2638","Самарская область",null,null,null,null,"26485502","ОАО “ТЯЖМАШ”","6325000660","631050001",null,null,null,null,null,"РСО","/Электроэнергетика/Передача ЭЭ/РСО"]
[60,"2638","Самарская область",null,null,null,null,"26495865","ОАО “Тольяттинская энергосбытовая компания”","6321211371","631050001",null,null,null,null,null,"ГП","/Электроэнергетика/Сбыт ЭЭ/ГП"]
[61,"2638","Самарская область",null,null,null,null,"26322431","ОАО “ЭЛЕКТРОСЕТЬ”","6320003682","632001001",null,null,null,null,null,"РСО","/Электроэнергетика/Передача ЭЭ/РСО"]
[62,"2638","Самарская область",null,null,null,null,"27566882","ОАО «Завод ЖБИ-№3»","6319009947","631900994",null,null,null,null,null,"РСО","/Электроэнергетика/Передача ЭЭ/РСО"]
[63,"2638","Самарская область",null,null,null,null,"26837653","ОАО ГК «ТНС энерго»","7705541227","770201001",null,null,null,null,null,"Нерегулируемый сбыт","/Электроэнергетика/Сбыт ЭЭ/Нерегулируемый сбыт"]
[64,"2638","Самарская область",null,null,null,null,"26621273","ОАО РЖД \"Куйбышевская железная дорога\"","7708503727","631131002",null,null,null,null,null,"РСО","/Электроэнергетика/Передача ЭЭ/РСО"]
[65,"2638","Самарская область",null,null,null,null,"26485674","ОАО Самарский завод “Экран”","6319033724","631901001",null,null,null,null,null,"РСО","/Электроэнергетика/Передача ЭЭ/РСО"]
[66,"2638","Самарская область",null,null,null,null,"27708360","ООО \"АВИАСПЕЦМОНТАЖ\"","6312054482","631201001",null,null,null,null,null,"РСО","/Электроэнергетика/Передача ЭЭ/РСО"]
[67,"2638","Самарская область",null,null,null,null,"27675710","ООО \"АВТОГРАД-ВОДОКАНАЛ\"","6321280368","632101001",null,null,null,null,null,"РСО","/Электроэнергетика/Передача ЭЭ/РСО"]
[68,"2638","Самарская область",null,null,null,null,"26322451","ООО \"БИАКСПЛЕН\"","5244013331","633043001",null,null,null,null,null,"РСО","/Электроэнергетика/Передача ЭЭ/РСО"]
[69,"2638","Самарская область",null,null,null,null,"26794654","ООО \"Белкам-Контракт\"","1834024515","183650001",null,null,null,null,null,"Нерегулируемый сбыт","/Электроэнергетика/Сбыт ЭЭ/Нерегулируемый сбыт"]
[70,"2638","Самарская область",null,null,null,null,"26625838","ООО \"ВолгаЭнергоИнжениринг\"","6315566030","631501001",null,null,null,null,null,"РСО","/Электроэнергетика/Передача ЭЭ/РСО"]
[71,"2638","Самарская область",null,null,null,null,"26318982","ООО \"Волжский энергосервис\"","6376062915","637601001",null,null,null,null,null,"Нерегулируемый сбыт","/Электроэнергетика/Сбыт ЭЭ/Нерегулируемый сбыт"]
[72,"2638","Самарская область",null,null,null,null,"26836349","ООО \"Горный холод\"","6322028178","631701001",null,null,null,null,null,"РСО","/Электроэнергетика/Передача ЭЭ/РСО"]
[73,"2638","Самарская область",null,null,null,null,"26427401","ООО \"Дизаж М\"","7728587330","772801001",null,null,null,null,null,"Нерегулируемый сбыт","/Электроэнергетика/Сбыт ЭЭ/Нерегулируемый сбыт"]
[74,"2638","Самарская область",null,null,null,null,"28263191","ООО \"Долина-Центр-С\"","6316079449","631501001",null,null,null,null,null,"РСО","/Электроэнергетика/Передача ЭЭ/РСО"]
[75,"2638","Самарская область",null,null,null,null,"30898982","ООО \"ЕЭС-Гарант\"","5024173259","561243001",null,null,null,null,null,"Нерегулируемый сбыт","/Электроэнергетика/Сбыт ЭЭ/Нерегулируемый сбыт"]
[76,"2638","Самарская область",null,null,null,null,"28829524","ООО \"ЕЭС.Гарант\"","5024104671","631545001",null,null,null,null,null,"Нерегулируемый сбыт","/Электроэнергетика/Сбыт ЭЭ/Нерегулируемый сбыт"]
[77,"2638","Самарская область",null,null,null,null,"26495927","ООО \"ЖЭУ 110 \"А\"","6315567468","631501001","01-01-2011 00:00:00",null,null,null,null,"РСО","/Электроэнергетика/Передача ЭЭ/РСО"]
[78,"2638","Самарская область",null,null,null,null,"26322450","ООО \"Инженерные сети\"","6318142978","631801001",null,null,null,null,null,"РСО","/Электроэнергетика/Передача ЭЭ/РСО"]
[79,"2638","Самарская область",null,null,null,null,"27831126","ООО \"Компания Стрейд\"","6316090450","631601001",null,null,null,null,null,"РСО","/Электроэнергетика/Передача ЭЭ/РСО"]
[80,"2638","Самарская область",null,null,null,null,"26803943","ООО \"Лесэнерго\"","6318100093","631201001","04-04-2011 00:00:00",null,null,null,null,"РСО","/Электроэнергетика/Передача ЭЭ/РСО"]
[81,"2638","Самарская область",null,null,null,null,"28147378","ООО \"МагнитЭнерго\"","7715902899","231001001",null,null,null,null,null,"Нерегулируемый сбыт","/Электроэнергетика/Сбыт ЭЭ/Нерегулируемый сбыт"]
[82,"2638","Самарская область",null,null,null,null,"26318983","ООО \"НК-Энергосбыт\"","6313134243","631301001",null,null,null,null,null,"Нерегулируемый сбыт","/Электроэнергетика/Сбыт ЭЭ/Нерегулируемый сбыт"]
[83,"2638","Самарская область",null,null,null,null,"26322484","ООО \"Отдых\"","6325000237","632501001",null,null,null,null,null,"РСО","/Электроэнергетика/Передача ЭЭ/РСО"]
[84,"2638","Самарская область",null,null,null,null,"31173145","ООО \"ПЭСК\"","6324049550","632401001",null,null,null,null,null,"Нерегулируемый сбыт","/Электроэнергетика/Сбыт ЭЭ/Нерегулируемый сбыт"]
[85,"2638","Самарская область",null,null,null,null,"27831116","ООО \"Поволжская сетевая компания\"","6324023834","632401001",null,null,null,null,null,"РСО","/Электроэнергетика/Передача ЭЭ/РСО"]
[86,"2638","Самарская область",null,null,null,null,"26503168","ООО \"ПромЭнерго\"","6316136633","631601001",null,null,null,null,null,"Нерегулируемый сбыт","/Электроэнергетика/Сбыт ЭЭ/Нерегулируемый сбыт"]
[87,"2638","Самарская область",null,null,null,null,"26416221","ООО \"РН-Энерго\"","7706525041","997650001","02-05-2012 00:00:00",null,null,null,null,"Нерегулируемый сбыт","/Электроэнергетика/Сбыт ЭЭ/Нерегулируемый сбыт"]
[88,"2638","Самарская область",null,null,null,null,"28495004","ООО \"РРСК\"","5907024108","645043001",null,null,null,null,null,"РСО","/Электроэнергетика/Передача ЭЭ/РСО"]
[89,"2638","Самарская область",null,null,null,null,"27666778","ООО \"РТ-Энерготрейдинг\"","7729667652","772901001","18-10-2010 00:00:00",null,null,null,null,"Нерегулируемый сбыт","/Электроэнергетика/Сбыт ЭЭ/Нерегулируемый сбыт"]
[90,"2638","Самарская область",null,null,null,null,"26318820","ООО \"Региональная энергосбытовая компания\" (ОПП)","4633017746","463301001",null,null,null,null,null,"Нерегулируемый сбыт","/Электроэнергетика/Сбыт ЭЭ/Нерегулируемый сбыт"]
[91,"2638","Самарская область",null,null,null,null,"26836345","ООО \"Региональные электрические сети\"","6318183371","631801001",null,null,null,null,null,"РСО","/Электроэнергетика/Передача ЭЭ/РСО"]
[92,"2638","Самарская область",null,null,null,null,"26406211","ООО \"Русэнергоресурс\"","7706288496","770601001",null,null,null,null,null,"Нерегулируемый сбыт","/Электроэнергетика/Сбыт ЭЭ/Нерегулируемый сбыт"]
[93,"2638","Самарская область",null,null,null,null,"26502786","ООО \"Русэнергосбыт\"","7706284124","770601001",null,null,null,null,null,"Нерегулируемый сбыт","/Электроэнергетика/Сбыт ЭЭ/Нерегулируемый сбыт"]
[94,"2638","Самарская область",null,null,null,null,"26383164","ООО \"СВГК\"","6314012801","631050001",null,null,null,null,null,"РСО","/Электроэнергетика/Передача ЭЭ/РСО"]
[95,"2638","Самарская область",null,null,null,null,"30387746","ООО \"СВЭСКО\"","6324062030","632401001",null,null,null,null,null,"Нерегулируемый сбыт","/Электроэнергетика/Сбыт ЭЭ/Нерегулируемый сбыт"]
[96,"2638","Самарская область",null,null,null,null,"26485397","ООО \"СИБУР Тольятти\"","6323049893","631050001","14-05-1999 00:00:00",null,null,null,null,"РСО","/Электроэнергетика/Передача ЭЭ/РСО"]
[97,"2638","Самарская область",null,null,null,null,"30898488","ООО \"СК-Энерго\"","6316127325","631601001",null,null,null,null,null,"РСО","/Электроэнергетика/Передача ЭЭ/РСО"]
[98,"2638","Самарская область",null,null,null,null,"28262841","ООО \"СПЕЦАВТОМАТИКА\"","6323074392","632401001",null,null,null,null,null,"РСО","/Электроэнергетика/Передача ЭЭ/РСО"]
[99,"2638","Самарская область",null,null,null,null,"26322492","ООО \"СТРОММАШИНА\"","6318128028","631801001",null,null,null,null,null,"РСО","/Электроэнергетика/Передача ЭЭ/РСО"]
[100,"2638","Самарская область",null,null,null,null,"28798366","ООО \"СамараСеть\"","6316128600","631601001",null,null,null,null,null,"РСО","/Электроэнергетика/Передача ЭЭ/РСО"]
[101,"2638","Самарская область",null,null,null,null,"26322488","ООО \"Самараавтотранс-2000\"","6367006706","636701001",null,null,null,null,null,"РСО","/Электроэнергетика/Передача ЭЭ/РСО"]
[102,"2638","Самарская область",null,null,null,null,"28967647","ООО \"Самэнерго\"","6325017696","632501001",null,null,null,null,null,"ФСК :: РСО","/Электроэнергетика/Передача ЭЭ/ФСК :: /Электроэнергетика/Передача ЭЭ/РСО"]
[103,"2638","Самарская область",null,null,null,null,"28869552","ООО \"Сатурн-Энерго\"","6316200776","631601001",null,null,null,null,null,"РСО","/Электроэнергетика/Передача ЭЭ/РСО"]
[104,"2638","Самарская область",null,null,null,null,"26318984","ООО \"Сбыт-Энерго\"","6312061360","631201001",null,null,null,null,null,"Нерегулируемый сбыт","/Электроэнергетика/Сбыт ЭЭ/Нерегулируемый сбыт"]
[105,"2638","Самарская область",null,null,null,null,"27831106","ООО \"Сетевая компания\"","6315642179","631501001",null,null,null,null,null,"РСО","/Электроэнергетика/Передача ЭЭ/РСО"]
[106,"2638","Самарская область",null,null,null,null,"26322491","ООО \"Сетевик\"","6362014005","636201001",null,null,null,null,null,"РСО","/Электроэнергетика/Передача ЭЭ/РСО"]
[107,"2638","Самарская область",null,null,null,null,"27881756","ООО \"Синэргия\"","6316176450","631601001",null,null,null,null,null,"РСО","/Электроэнергетика/Передача ЭЭ/РСО"]
[108,"2638","Самарская область",null,null,null,null,"31061489","ООО \"Солар Системс\"","7728872602","770301001","11-03-2014 00:00:00",null,null,null,null,"Некомбинированная выработка","/Электроэнергетика/Производство ЭЭ/Некомбинированная выработка"]
[109,"2638","Самарская область",null,null,null,null,"27566615","ООО \"Солли-Энерго\"","6350012275","635001001",null,null,null,null,null,"РСО","/Электроэнергетика/Передача ЭЭ/РСО"]
[110,"2638","Самарская область",null,null,null,null,"30400026","ООО \"ТЭС\"","6325065530","632501001",null,null,null,null,null,"РСО","/Электроэнергетика/Передача ЭЭ/РСО"]
[111,"2638","Самарская область",null,null,null,null,"30400026","ООО \"ТЭС\"","6325065530","632501001",null,null,null,null,null,"ФСК","/Электроэнергетика/Передача ЭЭ/ФСК"]
[112,"2638","Самарская область",null,null,null,null,"30953636","ООО \"Технологии универсальных решений\"","6315657305","631501001",null,null,null,null,null,"РСО","/Электроэнергетика/Передача ЭЭ/РСО"]
[113,"2638","Самарская область",null,null,null,null,"26318985","ООО \"ТольяттиЭнергоСбыт\"","6321144460","632401001",null,null,null,null,null,"ГП","/Электроэнергетика/Сбыт ЭЭ/ГП"]
[114,"2638","Самарская область",null,null,null,null,"26611514","ООО \"ТранснефтьЭлектросетьСервис\"","6311049306","631101001","19-10-2000 00:00:00",null,null,null,null,"РСО","/Электроэнергетика/Передача ЭЭ/РСО"]
[115,"2638","Самарская область",null,null,null,null,"26497668","ООО \"Транснефтьэнерго\"","7703552167","772301001","01-07-2009 00:00:00",null,null,null,null,"Нерегулируемый сбыт","/Электроэнергетика/Сбыт ЭЭ/Нерегулируемый сбыт"]
[116,"2638","Самарская область",null,null,null,null,"30898555","ООО \"ЭНЕРГОХОЛДИНГ\"","6330047174","633001001",null,null,null,null,null,"РСО","/Электроэнергетика/Передача ЭЭ/РСО"]
[117,"2638","Самарская область",null,null,null,null,"30802839","ООО \"Электросетевая транспортная компания\"","6324071203","632401001",null,null,null,null,null,"РСО","/Электроэнергетика/Передача ЭЭ/РСО"]
[118,"2638","Самарская область",null,null,null,null,"30802839","ООО \"Электросетевая транспортная компания\"","6324071203","632401001",null,null,null,null,null,"ФСК","/Электроэнергетика/Передача ЭЭ/ФСК"]
[119,"2638","Самарская область",null,null,null,null,"30429848","ООО \"Электрощит\" - Энергосеть\"","6313548011","631301001",null,null,null,null,null,"РСО","/Электроэнергетика/Передача ЭЭ/РСО"]
[120,"2638","Самарская область",null,null,null,null,"26836331","ООО \"Энергетик\"","6325033916","632501001",null,null,null,null,null,"РСО","/Электроэнергетика/Передача ЭЭ/РСО"]
[121,"2638","Самарская область",null,null,null,null,"26322433","ООО \"Энерго\"","6312038138","631201001",null,null,null,null,null,"РСО","/Электроэнергетика/Передача ЭЭ/РСО"]
[122,"2638","Самарская область",null,null,null,null,"27671102","ООО \"Энерго-центр\"","7801523580","631601100","17-06-2011 00:00:00",null,null,null,null,"РСО","/Электроэнергетика/Передача ЭЭ/РСО"]
[123,"2638","Самарская область",null,null,null,null,"31081937","ООО \"ЭнергоСтандарт\"","6325071333","632501001",null,null,null,null,null,"РСО","/Электроэнергетика/Передача ЭЭ/РСО"]
[124,"2638","Самарская область",null,null,null,null,"26322439","ООО \"Энергонефть Самара\"","6340007068","634001001",null,null,null,null,null,"РСО","/Электроэнергетика/Передача ЭЭ/РСО"]
[125,"2638","Самарская область",null,null,null,null,"30875705","ООО \"Юг сети\"","6319163931","631901001",null,null,null,null,null,"РСО","/Электроэнергетика/Передача ЭЭ/РСО"]
[126,"2638","Самарская область",null,null,null,null,"26550519","ООО “Бизнес Инфо”","6316141200","631601001",null,null,null,null,null,"РСО","/Электроэнергетика/Передача ЭЭ/РСО"]
[127,"2638","Самарская область",null,null,null,null,"26485685","ООО “ВЭТ”","6318160247","631801001",null,null,null,null,null,"РСО","/Электроэнергетика/Передача ЭЭ/РСО"]
[128,"2638","Самарская область",null,null,null,null,"26495922","ООО “Волжский продукт”","6367005438","631801001",null,null,null,null,null,"РСО","/Электроэнергетика/Передача ЭЭ/РСО"]
[129,"2638","Самарская область",null,null,null,null,"26642635","ООО “ДМТ”","6371005342","637101001",null,null,null,null,null,"РСО","/Электроэнергетика/Передача ЭЭ/РСО"]
[130,"2638","Самарская область",null,null,null,null,"26485645","ООО “Завод приборных подшипников”","6367032625","631201001",null,null,null,null,null,"РСО","/Электроэнергетика/Передача ЭЭ/РСО"]
[131,"2638","Самарская область",null,null,null,null,"26495931","ООО “Засамарская сетевая компания”","6313172249","631201001",null,null,null,null,null,"РСО","/Электроэнергетика/Передача ЭЭ/РСО"]
[132,"2638","Самарская область",null,null,null,null,"26641433","ООО “Объединенная сетевая компания”","6315627741","631501001",null,null,null,null,null,"РСО","/Электроэнергетика/Передача ЭЭ/РСО"]
[133,"2638","Самарская область",null,null,null,null,"26642643","ООО “Реммаш-Сервис”","6340006924","634001001",null,null,null,null,null,"РСО","/Электроэнергетика/Передача ЭЭ/РСО"]
[134,"2638","Самарская область",null,null,null,null,"26322487","ООО “САМАРА-ХОЛДИНГ”","6316057678","631601001",null,null,null,null,null,"РСО","/Электроэнергетика/Передача ЭЭ/РСО"]
[135,"2638","Самарская область",null,null,null,null,"26322490","ООО “САМАРСКИЙ ДЕЛОВОЙ ЦЕНТР”","6316078251","631601001",null,null,null,null,null,"РСО","/Электроэнергетика/Передача ЭЭ/РСО"]
[136,"2638","Самарская область",null,null,null,null,"26322493","ООО “ТОЛЬЯТТИСПИРТПРОМ”","6323052720","632301001",null,null,null,null,null,"РСО","/Электроэнергетика/Передача ЭЭ/РСО"]
[137,"2638","Самарская область",null,null,null,null,"26642618","ООО “УЭС”","6330027146","633001001",null,null,null,null,null,"РСО","/Электроэнергетика/Передача ЭЭ/РСО"]
[138,"2638","Самарская область",null,null,null,null,"26322444","ООО “ЭНЕРГОБЫТОБСЛУЖИВАНИЕ”","6313039399","631301001",null,null,null,null,null,"РСО","/Электроэнергетика/Передача ЭЭ/РСО"]
[139,"2638","Самарская область",null,null,null,null,"26485246","ООО “ЭНЕРГОЗАВОД”","6376012939","637601001",null,null,null,null,null,"РСО","/Электроэнергетика/Передача ЭЭ/РСО"]
[140,"2638","Самарская область",null,null,null,null,"26495951","ООО “Эл-Транзит Плюс”","6317074500","631901001",null,null,null,null,null,"РСО","/Электроэнергетика/Передача ЭЭ/РСО"]
[141,"2638","Самарская область",null,null,null,null,"26485662","ООО “Электрощит” - Энерготехстрой”","6313132888","631301001",null,null,null,null,null,"РСО","/Электроэнергетика/Передача ЭЭ/РСО"]
[142,"2638","Самарская область",null,null,null,null,"27891820","ООО «Ставропольская Электросеть»","6323083767","632301001",null,null,null,null,null,"РСО","/Электроэнергетика/Передача ЭЭ/РСО"]
[143,"2638","Самарская область",null,null,null,null,"28139574","ООО «Энергосервис»","6372020720","635001001",null,null,null,null,null,"РСО","/Электроэнергетика/Передача ЭЭ/РСО"]
[144,"2638","Самарская область",null,null,null,null,"26792017","Общество с ограниченной ответственностью \"АРСТЭМ-ЭнергоТрейд\", г.Екатеринбург","6672185635","667201001",null,null,null,null,null,"Нерегулируемый сбыт","/Электроэнергетика/Сбыт ЭЭ/Нерегулируемый сбыт"]
[145,"2638","Самарская область",null,null,null,null,"26809138","ПАО \"МРСК Волги\"","6450925977","645001001","29-06-2007 00:00:00",null,null,null,null,"РСО","/Электроэнергетика/Передача ЭЭ/РСО"]
[146,"2638","Самарская область",null,null,null,null,"26318851","ПАО \"РЭСК\"","6229049014","623401001",null,null,null,null,null,"Нерегулируемый сбыт","/Электроэнергетика/Сбыт ЭЭ/Нерегулируемый сбыт"]
[147,"2638","Самарская область",null,null,null,null,"26318979","ПАО \"Самараэнерго\"","6315222985","997450001",null,null,null,null,null,"РСО :: Нерегулируемый сбыт :: ГП :: Комбинированная выработка :: Некомбинированная выработка","/Электроэнергетика/Передача ЭЭ/РСО :: /Электроэнергетика/Сбыт ЭЭ/Нерегулируемый сбыт :: /Электроэнергетика/Сбыт ЭЭ/ГП :: /Электроэнергетика/Производство ЭЭ/Комбинированная выработка :: /Электроэнергетика/Производство ЭЭ/Некомбинированная выработка"]
[148,"2638","Самарская область",null,null,null,null,"26318986","ПАО \"Ульяновскэнерго\"","7327012462","730350001",null,null,null,null,null,"Нерегулируемый сбыт","/Электроэнергетика/Сбыт ЭЭ/Нерегулируемый сбыт"]
[149,"2638","Самарская область",null,null,null,null,"26832761","ПАО \"ФСК ЕЭС\"","4716016979","772801001",null,null,null,null,null,"РСО","/Электроэнергетика/Передача ЭЭ/РСО"]
[150,"2638","Самарская область",null,null,null,null,"26322448","ПАО “АВТОВАЗ”","6320002223","997850001",null,null,null,null,null,"РСО","/Электроэнергетика/Передача ЭЭ/РСО"]
[151,"2638","Самарская область",null,null,null,null,"26322468","ПАО “Завод имени А.М. Тарасова”","6319017480","631901001",null,null,null,null,null,"РСО","/Электроэнергетика/Передача ЭЭ/РСО"]
[152,"2638","Самарская область",null,null,null,null,"26485603","ПАО “КУЗНЕЦОВ”","6319033379","631901001",null,null,null,null,null,"РСО","/Электроэнергетика/Передача ЭЭ/РСО"]
[153,"2638","Самарская область",null,null,null,null,"26485611","ПАО “САЛЮТ”","6313034986","631301001",null,null,null,null,null,"РСО","/Электроэнергетика/Передача ЭЭ/РСО"]
[154,"2638","Самарская область",null,null,null,null,"26324408","Самарская ГРЭС","6315376946","631502001",null,null,null,null,null,"Комбинированная выработка","/Электроэнергетика/Производство ЭЭ/Комбинированная выработка"]
[155,"2638","Самарская область",null,null,null,null,"26518665","Саратовский филиал ООО \"Газпром энерго\"","7736186950","645302001","17-04-2006 00:00:00",null,null,null,null,"РСО","/Электроэнергетика/Передача ЭЭ/РСО"]
[156,"2638","Самарская область",null,null,null,null,"26485122","ФГБУЗ МРЦ \"Сергиевские минеральные воды\" ФМБА России","6381000103","638101001",null,null,null,null,null,"РСО","/Электроэнергетика/Передача ЭЭ/РСО"]
[157,"2638","Самарская область",null,null,null,null,"26784998","ФКП \"Самарский завод \"Коммунар\"","6367080065","636701001","23-10-2000 00:00:00",null,null,null,null,"РСО","/Электроэнергетика/Передача ЭЭ/РСО"]
[158,"2638","Самарская область",null,null,null,null,"26322509","ФКП “Приволжский государственный боеприпасный испытательный полигон”","6330280371","631001001",null,null,null,null,null,"РСО","/Электроэнергетика/Передача ЭЭ/РСО"]
[159,"2638","Самарская область",null,null,null,null,"27540016","Филиал \"Самарский\" ПАО \"Т Плюс\"","6315376946","631543004",null,null,null,null,null,"Комбинированная выработка :: Некомбинированная выработка","/Электроэнергетика/Производство ЭЭ/Комбинированная выработка :: /Электроэнергетика/Производство ЭЭ/Некомбинированная выработка"]
[160,"2638","Самарская область",null,null,null,null,"30877589","Филиал «Уральский» АО «Оборонэнергосбыт»","7704731218","665843001",null,null,null,null,null,"ГП","/Электроэнергетика/Сбыт ЭЭ/ГП"]
[161,"2638","Самарская область",null,null,null,null,"30848502","Филиал ПАО \"МРСК Волги\" - \"Самарские распределительные сети\"","6450925977","631602001",null,null,null,null,null,"РСО","/Электроэнергетика/Передача ЭЭ/РСО"]
[162,"2638","Самарская область",null,null,null,null,"26643263","Южно-Уральская дирекция по энергообеспечению – структурное подразделение Трансэнерго – филиала ОАО «РЖД»","7708503727","745145018",null,null,null,null,null,"РСО","/Электроэнергетика/Передача ЭЭ/РСО"]
[163,"2638","Самарская область",null,null,null,null,"26794614","филиал ОАО \"ПК \"Балтика\" \"Балтика-Самара\"","7830001405","637102001",null,null,null,null,null,"Нерегулируемый сбыт","/Электроэнергетика/Сбыт ЭЭ/Нерегулируемый сбыт"]
[164,"2638","Самарская область",null,null,null,null,"26324412","филиал ПАО \"РусГидро\" -  \"Жигулевская ГЭС\"","2460066195","634502001",null,null,null,null,null,"Некомбинированная выработка","/Электроэнергетика/Производство ЭЭ/Некомбинированная выработка"]

{"sheet":"REESTR_FIL","index":18,"n_rows":1,"n_cols":5,"rows_kept":1,"cut":false,"hidden":true,"merged":[]}
["МР","МО","МО_ОКТМО","МР","ИМЯ ДИАПАЗОНА"]

{"sheet":"REESTR_MO","index":19,"n_rows":344,"n_cols":6,"rows_kept":344,"cut":false,"hidden":true,"merged":[]}
["МР","МО","МО_ОКТМО","МО_ТИП","МР","ИМЯ ДИАПАЗОНА"]
["Алексеевский муниципальный район","Алексеевский муниципальный район","36602000","муниципальный район","Алексеевский муниципальный район","MO_LIST_2"]
["Алексеевский муниципальный район","сельское поселение Авангард","36602404","сельское поселение","Безенчукский муниципальный район","MO_LIST_3"]
["Алексеевский муниципальный район","сельское поселение Алексеевка","36602408","сельское поселение","Богатовский муниципальный район","MO_LIST_4"]
["Алексеевский муниципальный район","сельское поселение Гавриловка","36602412","сельское поселение","Большеглушицкий муниципальный район","MO_LIST_5"]
["Алексеевский муниципальный район","сельское поселение Герасимовка","36602416","сельское поселение","Большечерниговский муниципальный район","MO_LIST_6"]
["Алексеевский муниципальный район","сельское поселение Летниково","36602420","сельское поселение","Борский муниципальный район","MO_LIST_7"]
["Безенчукский муниципальный район","Безенчукский муниципальный район","36604000","муниципальный район","Волжский муниципальный район","MO_LIST_8"]
["Безенчукский муниципальный район","городское поселение Безенчук","36604151","городское поселение, в состав которого входит поселок","Елховский муниципальный район","MO_LIST_9"]
["Безенчукский муниципальный район","городское поселение Осинки","36604157","городское поселение, в состав которого входит поселок","Исаклинский муниципальный район","MO_LIST_10"]
["Безенчукский муниципальный район","сельское поселение Васильевка","36604408","сельское поселение","Камышлинский муниципальный район","MO_LIST_11"]
["Безенчукский муниципальный район","сельское поселение Екатериновка","36604412","сельское поселение","Кинель-Черкасский муниципальный район","MO_LIST_12"]
["Безенчукский муниципальный район","сельское поселение Звезда","36604416","сельское поселение","Кинельский муниципальный район","MO_LIST_13"]
["Безенчукский муниципальный район","сельское поселение Купино","36604420","сельское поселение","Клявлинский муниципальный район","MO_LIST_14"]
["Безенчукский муниципальный район","сельское поселение Натальино","36604424","сельское поселение","Кошкинский муниципальный район","MO_LIST_15"]
["Безенчукский муниципальный район","сельское поселение Ольгино","36604440","сельское поселение","Красноармейский муниципальный район","MO_LIST_16"]
["Безенчукский муниципальный район","сельское поселение Переволоки","36604428","сельское поселение","Красноярский муниципальный район","MO_LIST_17"]
["Безенчукский муниципальный район","сельское поселение Песочное","36604430","сельское поселение","Нефтегорский муниципальный район","MO_LIST_18"]
["Безенчукский муниципальный район","сельское поселение Преполовенка","36604432","сельское поселение","Пестравский муниципальный район","MO_LIST_19"]
["Безенчукский муниципальный район","сельское поселение Прибой","36604436","сельское поселение","Похвистневский муниципальный район","MO_LIST_20"]
["Богатовский муниципальный район","Богатовский муниципальный район","36606000","муниципальный район","Приволжский муниципальный район","MO_LIST_21"]
["Богатовский муниципальный район","сельское поселение Арзамасцевка","36606404","сельское поселение","Сергиевский муниципальный район","MO_LIST_22"]
["Богатовский муниципальный район","сельское поселение Богатое","36606408","сельское поселение","Ставропольский муниципальный район","MO_LIST_23"]
["Богатовский муниципальный район","сельское поселение Виловатое","36606412","сельское поселение","Сызранский муниципальный район","MO_LIST_24"]
["Богатовский муниципальный район","сельское поселение Максимовка","36606416","сельское поселение","Хворостянский муниципальный район","MO_LIST_25"]
["Богатовский муниципальный район","сельское поселение Печинено","36606420","сельское поселение","Челно-Вершинский муниципальный район","MO_LIST_26"]
["Большеглушицкий муниципальный район","Большеглушицкий муниципальный район","36608000","муниципальный район","Шенталинский муниципальный район","MO_LIST_27"]
["Большеглушицкий муниципальный район","сельское поселение Александровка","36608404","сельское поселение","Шигонский муниципальный район","MO_LIST_28"]
["Большеглушицкий муниципальный район","сельское поселение Большая Глушица","36608408","сельское поселение","городской округ Жигулевск","MO_LIST_29"]
["Большеглушицкий муниципальный район","сельское поселение Большая Дергуновка","36608412","сельское поселение","городской округ Кинель","MO_LIST_30"]
["Большеглушицкий муниципальный район","сельское поселение Малая Глушица","36608416","сельское поселение","городской округ Новокуйбышевск","MO_LIST_31"]
["Большеглушицкий муниципальный район","сельское поселение Мокша","36608418","сельское поселение","городской округ Октябрьск","MO_LIST_32"]
["Большеглушицкий муниципальный район","сельское поселение Новопавловка","36608420","сельское поселение","городской округ Отрадный","MO_LIST_33"]
["Большеглушицкий муниципальный район","сельское поселение Фрунзенское","36608424","сельское поселение","городской округ Похвистнево","MO_LIST_34"]
["Большеглушицкий муниципальный район","сельское поселение Южное","36608428","сельское поселение","городской округ Самара","MO_LIST_35"]
["Большечерниговский муниципальный район","Большечерниговский муниципальный район","36610000","муниципальный район","городской округ Сызрань","MO_LIST_36"]
["Большечерниговский муниципальный район","сельское поселение Августовка","36610404","сельское поселение","городской округ Тольятти","MO_LIST_37"]
["Большечерниговский муниципальный район","сельское поселение Большая Черниговка","36610412","сельское поселение","городской округ Чапаевск","MO_LIST_38"]
["Большечерниговский муниципальный район","сельское поселение Восточный","36610416","сельское поселение"]
["Большечерниговский муниципальный район","сельское поселение Глушицкий","36610408","сельское поселение"]
["Большечерниговский муниципальный район","сельское поселение Краснооктябрьский","36610420","сельское поселение"]
["Большечерниговский муниципальный район","сельское поселение Пензено","36610424","сельское поселение"]
["Большечерниговский муниципальный район","сельское поселение Петровский","36610426","сельское поселение"]
["Большечерниговский муниципальный район","сельское поселение Поляков","36610427","сельское поселение"]
["Большечерниговский муниципальный район","сельское поселение Украинка","36610428","сельское поселение"]
["Борский муниципальный район","Борский муниципальный район","36612000","муниципальный район"]
["Борский муниципальный район","сельское поселение Большое Алдаркино","36612404","сельское поселение"]
["Борский муниципальный район","сельское поселение Борское","36612408","сельское поселение"]
["Борский муниципальный район","сельское поселение Гвардейцы","36612412","сельское поселение"]
["Борский муниципальный район","сельское поселение Долматовка","36612416","сельское поселение"]
["Борский муниципальный район","сельское поселение Заплавное","36612420","сельское поселение"]
["Борский муниципальный район","сельское поселение Коноваловка","36612424","сельское поселение"]
["Борский муниципальный район","сельское поселение Новоборское","36612434","сельское поселение"]
["Борский муниципальный район","сельское поселение Новый Кутулук","36612432","сельское поселение"]
["Борский муниципальный район","сельское поселение Петровка","36612436","сельское поселение"]
["Борский муниципальный район","сельское поселение Подгорное","36612440","сельское поселение"]
["Борский муниципальный район","сельское поселение Подсолнечное","36612444","сельское поселение"]
["Борский муниципальный район","сельское поселение Таволжанка","36612453","сельское поселение"]
["Борский муниципальный район","сельское поселение Усманка","36612456","сельское поселение"]
["Волжский муниципальный район","Волжский муниципальный район","36614000","муниципальный район"]
["Волжский муниципальный район","городское поселение Петра Дубрава","36614155","городское поселение, в состав которого входит поселок"]
["Волжский муниципальный район","городское поселение Рощинский","36614156","городское поселение, в состав которого входит поселок"]
["Волжский муниципальный район","городское поселение Смышляевка","36614157","городское поселение, в состав которого входит поселок"]
["Волжский муниципальный район","сельское поселение Верхняя Подстепновка","36614403","сельское поселение"]
["Волжский муниципальный район","сельское поселение Воскресенка","36614404","сельское поселение"]
["Волжский муниципальный район","сельское поселение Дубовый умет","36614416","сельское поселение"]
["Волжский муниципальный район","сельское поселение Курумоч","36614420","сельское поселение"]
["Волжский муниципальный район","сельское поселение Лопатино","36614421","сельское поселение"]
["Волжский муниципальный район","сельское поселение Подъем-Михайловка","36614432","сельское поселение"]
["Волжский муниципальный район","сельское поселение Просвет","36614436","сельское поселение"]
["Волжский муниципальный район","сельское поселение Рождествено","36614440","сельское поселение"]
["Волжский муниципальный район","сельское поселение Спиридоновка","36614444","сельское поселение"]
["Волжский муниципальный район","сельское поселение Сухая Вязовка","36614448","сельское поселение"]
["Волжский муниципальный район","сельское поселение Черновский","36614452","сельское поселение"]
["Волжский муниципальный район","сельское поселение Черноречье","36614456","сельское поселение"]
["Елховский муниципальный район","Елховский муниципальный район","36615000","муниципальный район"]
["Елховский муниципальный район","сельское поселение Березовка","36615405","сельское поселение"]
["Елховский муниципальный район","сельское поселение Елховка","36615420","сельское поселение"]
["Елховский муниципальный район","сельское поселение Красное Поселение","36615440","сельское поселение"]
["Елховский муниципальный район","сельское поселение Красные Дома","36615435","сельское поселение"]
["Елховский муниципальный район","сельское поселение Никитинка","36615450","сельское поселение"]
["Елховский муниципальный район","сельское поселение Сухие Аврали","36615460","сельское поселение"]
["Елховский муниципальный район","сельское поселение Теплый Стан","36615465","сельское поселение"]
["Исаклинский муниципальный район","Исаклинский муниципальный район","36616000","муниципальный район"]
["Исаклинский муниципальный район","сельское поселение Большое Микушкино","36616420","сельское поселение"]
["Исаклинский муниципальный район","сельское поселение Два Ключа","36616404","сельское поселение"]
["Исаклинский муниципальный район","сельское поселение Исаклы","36616408","сельское поселение"]
["Исаклинский муниципальный район","сельское поселение Ключи","36616416","сельское поселение"]
["Исаклинский муниципальный район","сельское поселение Мордово-Ишуткино","36616412","сельское поселение"]
["Исаклинский муниципальный район","сельское поселение Новое Ганькино","36616428","сельское поселение"]
["Исаклинский муниципальный район","сельское поселение Новое Якушкино","36616432","сельское поселение"]
["Исаклинский муниципальный район","сельское поселение Старое Вечканово","36616436","сельское поселение"]
["Камышлинский муниципальный район","Камышлинский муниципальный район","36617000","муниципальный район"]
["Камышлинский муниципальный район","сельское поселение Байтуган","36617404","сельское поселение"]
["Камышлинский муниципальный район","сельское поселение Балыкла","36617408","сельское поселение"]
["Камышлинский муниципальный район","сельское поселение Ермаково","36617416","сельское поселение"]
["Камышлинский муниципальный район","сельское поселение Камышла","36617420","сельское поселение"]
["Камышлинский муниципальный район","сельское поселение Новое Усманово","36617436","сельское поселение"]
["Камышлинский муниципальный район","сельское поселение Старое Усманово","36617458","сельское поселение"]
["Кинель-Черкасский муниципальный район","Кинель-Черкасский муниципальный район","36620000","муниципальный район"]
["Кинель-Черкасский муниципальный район","Межселенная территория Кинель-Черкасского муниципального района, включающая территорию чересполосного земельного участка","36620701","межселенная территория"]
["Кинель-Черкасский муниципальный район","сельское поселение Александровка","36620404","сельское поселение"]
["Кинель-Черкасский муниципальный район","сельское поселение Березняки","36620408","сельское поселение"]
["Кинель-Черкасский муниципальный район","сельское поселение Ерзовка","36620420","сельское поселение"]
["Кинель-Черкасский муниципальный район","сельское поселение Кабановка","36620428","сельское поселение"]
["Кинель-Черкасский муниципальный район","сельское поселение Кинель-Черкассы","36620432","сельское поселение"]
["Кинель-Черкасский муниципальный район","сельское поселение Красная Горка","36620440","сельское поселение"]
["Кинель-Черкасский муниципальный район","сельское поселение Кротовка","36620444","сельское поселение"]
["Кинель-Черкасский муниципальный район","сельское поселение Муханово","36620448","сельское поселение"]
["Кинель-Черкасский муниципальный район","сельское поселение Новые Ключи","36620452","сельское поселение"]
["Кинель-Черкасский муниципальный район","сельское поселение Подгорное","36620453","сельское поселение"]
["Кинель-Черкасский муниципальный район","сельское поселение Садгород","36620458","сельское поселение"]
["Кинель-Черкасский муниципальный район","сельское поселение Тимашево","36620466","сельское поселение"]
["Кинель-Черкасский муниципальный район","сельское поселение Черновка","36620468","сельское поселение"]
["Кинельский муниципальный район","Кинельский муниципальный район","36618000","муниципальный район"]
["Кинельский муниципальный район","сельское поселение Алакаевка","36618404","сельское поселение"]
["Кинельский муниципальный район","сельское поселение Бобровка","36618408","сельское поселение"]
["Кинельский муниципальный район","сельское поселение Богдановка","36618412","сельское поселение"]
["Кинельский муниципальный район","сельское поселение Георгиевка","36618416","сельское поселение"]
["Кинельский муниципальный район","сельское поселение Домашка","36618420","сельское поселение"]
["Кинельский муниципальный район","сельское поселение Кинельский","36618424","сельское поселение"]
["Кинельский муниципальный район","сельское поселение Комсомольский","36618428","сельское поселение"]
["Кинельский муниципальный район","сельское поселение Красносамарское","36618432","сельское поселение"]
["Кинельский муниципальный район","сельское поселение Малая Малышевка","36618436","сельское поселение"]
["Кинельский муниципальный район","сельское поселение Новый Сарбай","36618440","сельское поселение"]
["Кинельский муниципальный район","сельское поселение Сколково","36618444","сельское поселение"]
["Кинельский муниципальный район","сельское поселение Чубовка","36618448","сельское поселение"]
["Клявлинский муниципальный район","Клявлинский муниципальный район","36622000","муниципальный район"]
["Клявлинский муниципальный район","сельское поселение Борискино-Игар","36622412","сельское поселение"]
["Клявлинский муниципальный район","сельское поселение Назаровка","36622460","сельское поселение"]
["Клявлинский муниципальный район","сельское поселение Старое Семенкино","36622452","сельское поселение"]
["Клявлинский муниципальный район","сельское поселение Старый Маклауш","36622448","сельское поселение"]
["Клявлинский муниципальный район","сельское поселение Черный Ключ","36622468","сельское поселение"]
["Клявлинский муниципальный район","сельское поселение станция Клявлино","36622424","сельское поселение"]
["Кошкинский муниципальный район","Кошкинский муниципальный район","36624000","муниципальный район"]
["Кошкинский муниципальный район","сельское поселение Большая Константиновка","36624408","сельское поселение"]
["Кошкинский муниципальный район","сельское поселение Большая Романовка","36624412","сельское поселение"]
["Кошкинский муниципальный район","сельское поселение Большое Ермаково","36624424","сельское поселение"]
["Кошкинский муниципальный район","сельское поселение Кошки","36624432","сельское поселение"]
["Кошкинский муниципальный район","сельское поселение Надеждино","36624448","сельское поселение"]
["Кошкинский муниципальный район","сельское поселение Нижняя Быковка","36624452","сельское поселение"]
["Кошкинский муниципальный район","сельское поселение Новая Кармала","36624428","сельское поселение"]
["Кошкинский муниципальный район","сельское поселение Орловка","36624458","сельское поселение"]
["Кошкинский муниципальный район","сельское поселение Русская Васильевка","36624416","сельское поселение"]
["Кошкинский муниципальный район","сельское поселение Старое Максимкино","36624464","сельское поселение"]
["Кошкинский муниципальный район","сельское поселение Степная Шентала","36624468","сельское поселение"]
["Кошкинский муниципальный район","сельское поселение Четыровка","36624480","сельское поселение"]
["Кошкинский муниципальный район","сельское поселение Шпановка","36624484","сельское поселение"]
["Красноармейский муниципальный район","Красноармейский муниципальный район","36626000","муниципальный район"]
["Красноармейский муниципальный район","сельское поселение Алексеевский","36626402","сельское поселение"]
["Красноармейский муниципальный район","сельское поселение Андросовка","36626404","сельское поселение"]
["Красноармейский муниципальный район","сельское поселение Волчанка","36626408","сельское поселение"]
["Красноармейский муниципальный район","сельское поселение Гражданский","36626412","сельское поселение"]
["Красноармейский муниципальный район","сельское поселение Кировский","36626416","сельское поселение"]
["Красноармейский муниципальный район","сельское поселение Колывань","36626420","сельское поселение"]
["Красноармейский муниципальный район","сельское поселение Красноармейское","36626424","сельское поселение"]
["Красноармейский муниципальный район","сельское поселение Криволучье-Ивановка","36626426","сельское поселение"]
["Красноармейский муниципальный район","сельское поселение Куйбышевский","36626428","сельское поселение"]
["Красноармейский муниципальный район","сельское поселение Ленинский","36626432","сельское поселение"]
["Красноармейский муниципальный район","сельское поселение Павловка","36626434","сельское поселение"]
["Красноармейский муниципальный район","сельское поселение Чапаевский","36626436","сельское поселение"]
["Красноярский муниципальный район","Красноярский муниципальный район","36628000","муниципальный район"]
["Красноярский муниципальный район","городское поселение Волжский","36628155","городское поселение, в состав которого входит поселок"]
["Красноярский муниципальный район","городское поселение Мирный","36628158","городское поселение, в состав которого входит поселок"]
["Красноярский муниципальный район","городское поселение Новосемейкино","36628163","городское поселение, в состав которого входит поселок"]
["Красноярский муниципальный район","сельское поселение Большая Каменка","36628404","сельское поселение"]
["Красноярский муниципальный район","сельское поселение Большая Раковка","36628408","сельское поселение"]
["Красноярский муниципальный район","сельское поселение Коммунарский","36628412","сельское поселение"]
["Красноярский муниципальный район","сельское поселение Красный Яр","36628416","сельское поселение"]
["Красноярский муниципальный район","сельское поселение Новый Буян","36628420","сельское поселение"]
["Красноярский муниципальный район","сельское поселение Светлое Поле","36628424","сельское поселение"]
["Красноярский муниципальный район","сельское поселение Старая Бинарадка","36628428","сельское поселение"]
["Красноярский муниципальный район","сельское поселение Хилково","36628432","сельское поселение"]
["Красноярский муниципальный район","сельское поселение Хорошенькое","36628436","сельское поселение"]
["Красноярский муниципальный район","сельское поселение Шилан","36628440","сельское поселение"]
["Нефтегорский муниципальный район","Нефтегорский муниципальный район","36630000","муниципальный район"]
["Нефтегорский муниципальный район","городское поселение Нефтегорск","36630101","городское поселение, в состав которого входит город"]
["Нефтегорский муниципальный район","сельское поселение Бариновка","36630402","сельское поселение"]
["Нефтегорский муниципальный район","сельское поселение Богдановка","36630404","сельское поселение"]
["Нефтегорский муниципальный район","сельское поселение Дмитриевка","36630408","сельское поселение"]
["Нефтегорский муниципальный район","сельское поселение Зуевка","36630412","сельское поселение"]
["Нефтегорский муниципальный район","сельское поселение Кулешовка","36630413","сельское поселение"]
["Нефтегорский муниципальный район","сельское поселение Покровка","36630414","сельское поселение"]
["Нефтегорский муниципальный район","сельское поселение Семеновка","36630416","сельское поселение"]
["Нефтегорский муниципальный район","сельское поселение Утевка","36630420","сельское поселение"]
["Пестравский муниципальный район","Пестравский муниципальный район","36632000","муниципальный район"]
["Пестравский муниципальный район","сельское поселение Высокое","36632404","сельское поселение"]
["Пестравский муниципальный район","сельское поселение Красная Поляна","36632408","сельское поселение"]
["Пестравский муниципальный район","сельское поселение Майское","36632412","сельское поселение"]
["Пестравский муниципальный район","сельское поселение Марьевка","36632416","сельское поселение"]
["Пестравский муниципальный район","сельское поселение Михайло-Овсянка","36632420","сельское поселение"]
["Пестравский муниципальный район","сельское поселение Мосты","36632424","сельское поселение"]
["Пестравский муниципальный район","сельское поселение Падовка","36632428","сельское поселение"]
["Пестравский муниципальный район","сельское поселение Пестравка","36632432","сельское поселение"]
["Похвистневский муниципальный район","Похвистневский муниципальный район","36634000","муниципальный район"]
["Похвистневский муниципальный район","сельское поселение Алькино","36634408","сельское поселение"]
["Похвистневский муниципальный район","сельское поселение Большой Толкай","36634412","сельское поселение"]
["Похвистневский муниципальный район","сельское поселение Красные Ключи","36634426","сельское поселение"]
["Похвистневский муниципальный район","сельское поселение Кротково","36634428","сельское поселение"]
["Похвистневский муниципальный район","сельское поселение Малое Ибряйкино","36634420","сельское поселение"]
["Похвистневский муниципальный район","сельское поселение Малый Толкай","36634432","сельское поселение"]
["Похвистневский муниципальный район","сельское поселение Мочалеевка","36634436","сельское поселение"]
["Похвистневский муниципальный район","сельское поселение Новое Мансуркино","36634440","сельское поселение"]
["Похвистневский муниципальный район","сельское поселение Подбельск","36634444","сельское поселение"]
["Похвистневский муниципальный район","сельское поселение Рысайкино","36634446","сельское поселение"]
["Похвистневский муниципальный район","сельское поселение Савруха","36634448","сельское поселение"]
["Похвистневский муниципальный район","сельское поселение Среднее Аверкино","36634404","сельское поселение"]
["Похвистневский муниципальный район","сельское поселение Староганькино","36634460","сельское поселение"]
["Похвистневский муниципальный район","сельское поселение Старопохвистнево","36634468","сельское поселение"]
["Похвистневский муниципальный район","сельское поселение Старый Аманак","36634456","сельское поселение"]
["Приволжский муниципальный район","Приволжский муниципальный район","36636000","муниципальный район"]
["Приволжский муниципальный район","сельское поселение Давыдовка","36636404","сельское поселение"]
["Приволжский муниципальный район","сельское поселение Заволжье","36636405","сельское поселение"]
["Приволжский муниципальный район","сельское поселение Ильмень","36636406","сельское поселение"]
["Приволжский муниципальный район","сельское поселение Новоспасский","36636415","сельское поселение"]
["Приволжский муниципальный район","сельское поселение Обшаровка","36636408","сельское поселение"]
["Приволжский муниципальный район","сельское поселение Приволжье","36636412","сельское поселение"]
["Приволжский муниципальный район","сельское поселение Спасское","36636416","сельское поселение"]
["Сергиевский муниципальный район","Сергиевский муниципальный район","36638000","муниципальный район"]
["Сергиевский муниципальный район","городское поселение Суходол","36638158","городское поселение, в состав которого входит поселок"]
["Сергиевский муниципальный район","сельское поселение Антоновка","36638403","сельское поселение"]
["Сергиевский муниципальный район","сельское поселение Верхняя Орлянка","36638404","сельское поселение"]
["Сергиевский муниципальный район","сельское поселение Воротнее","36638406","сельское поселение"]
["Сергиевский муниципальный район","сельское поселение Елшанка","36638408","сельское поселение"]
["Сергиевский муниципальный район","сельское поселение Захаркино","36638409","сельское поселение"]
["Сергиевский муниципальный район","сельское поселение Калиновка","36638410","сельское поселение"]
["Сергиевский муниципальный район","сельское поселение Кандабулак","36638412","сельское поселение"]
["Сергиевский муниципальный район","сельское поселение Кармало-Аделяково","36638416","сельское поселение"]
["Сергиевский муниципальный район","сельское поселение Красносельское","36638420","сельское поселение"]
["Сергиевский муниципальный район","сельское поселение Кутузовский","36638424","сельское поселение"]
["Сергиевский муниципальный район","сельское поселение Липовка","36638426","сельское поселение"]
["Сергиевский муниципальный район","сельское поселение Светлодольск","36638430","сельское поселение"]
["Сергиевский муниципальный район","сельское поселение Сергиевск","36638432","сельское поселение"]
["Сергиевский муниципальный район","сельское поселение Серноводск","36638435","сельское поселение"]
["Сергиевский муниципальный район","сельское поселение Сургут","36638438","сельское поселение"]
["Сергиевский муниципальный район","сельское поселение Черновка","36638444","сельское поселение"]
["Ставропольский муниципальный район","Ставропольский муниципальный район","36640000","муниципальный район"]
["Ставропольский муниципальный район","сельское поселение Александровка","36640403","сельское поселение"]
["Ставропольский муниципальный район","сельское поселение Бахилово","36640406","сельское поселение"]
["Ставропольский муниципальный район","сельское поселение Большая Рязань","36640409","сельское поселение"]
["Ставропольский муниципальный район","сельское поселение Васильевка","36640412","сельское поселение"]
["Ставропольский муниципальный район","сельское поселение Верхнее Санчелеево","36640415","сельское поселение"]
["Ставропольский муниципальный район","сельское поселение Верхние Белозерки","36640414","сельское поселение"]
["Ставропольский муниципальный район","сельское поселение Выселки","36640418","сельское поселение"]
["Ставропольский муниципальный район","сельское поселение Жигули","36640421","сельское поселение"]
["Ставропольский муниципальный район","сельское поселение Кирилловка","36640423","сельское поселение"]
["Ставропольский муниципальный район","сельское поселение Луначарский","36640424","сельское поселение"]
["Ставропольский муниципальный район","сельское поселение Мусорка","36640427","сельское поселение"]
["Ставропольский муниципальный район","сельское поселение Нижнее Санчелеево","36640430","сельское поселение"]
["Ставропольский муниципальный район","сельское поселение Новая Бинарадка","36640433","сельское поселение"]
["Ставропольский муниципальный район","сельское поселение Осиновка","36640439","сельское поселение"]
["Ставропольский муниципальный район","сельское поселение Пискалы","36640436","сельское поселение"]
["Ставропольский муниципальный район","сельское поселение Подстепки","36640440","сельское поселение"]
["Ставропольский муниципальный район","сельское поселение Приморский","36640442","сельское поселение"]
["Ставропольский муниципальный район","сельское поселение Севрюкаево","36640448","сельское поселение"]
["Ставропольский муниципальный район","сельское поселение Сосновый Солонец","36640451","сельское поселение"]
["Ставропольский муниципальный район","сельское поселение Ташелка","36640454","сельское поселение"]
["Ставропольский муниципальный район","сельское поселение Тимофеевка","36640445","сельское поселение"]
["Ставропольский муниципальный район","сельское поселение Узюково","36640457","сельское поселение"]
["Ставропольский муниципальный район","сельское поселение Хрящевка","36640460","сельское поселение"]
["Ставропольский муниципальный район","сельское поселение Ягодное","36640463","сельское поселение"]
["Сызранский муниципальный район","Сызранский муниципальный район","36642000","муниципальный район"]
["Сызранский муниципальный район","городское поселение Балашейка","36642154","городское поселение, в состав которого входит поселок"]
["Сызранский муниципальный район","городское поселение Междуреченск","36642156","городское поселение, в состав которого входит поселок"]
["Сызранский муниципальный район","сельское поселение Варламово","36642406","сельское поселение"]
["Сызранский муниципальный район","сельское поселение Волжское","36642408","сельское поселение"]
["Сызранский муниципальный район","сельское поселение Жемковка","36642412","сельское поселение"]
["Сызранский муниципальный район","сельское поселение Заборовка","36642416","сельское поселение"]
["Сызранский муниципальный район","сельское поселение Ивашевка","36642418","сельское поселение"]
["Сызранский муниципальный район","сельское поселение Новая Рачейка","36642424","сельское поселение"]
["Сызранский муниципальный район","сельское поселение Новозаборовский","36642426","сельское поселение"]
["Сызранский муниципальный район","сельское поселение Печерское","36642428","сельское поселение"]
["Сызранский муниципальный район","сельское поселение Рамено","36642431","сельское поселение"]
["Сызранский муниципальный район","сельское поселение Старая Рачейка","36642436","сельское поселение"]
["Сызранский муниципальный район","сельское поселение Троицкое","36642440","сельское поселение"]
["Сызранский муниципальный район","сельское поселение Усинское","36642444","сельское поселение"]
["Сызранский муниципальный район","сельское поселение Чекалино","36642449","сельское поселение"]
["Хворостянский муниципальный район","Хворостянский муниципальный район","36644000","муниципальный район"]
["Хворостянский муниципальный район","сельское поселение Абашево","36644402","сельское поселение"]
["Хворостянский муниципальный район","сельское поселение Владимировка","36644403","сельское поселение"]
["Хворостянский муниципальный район","сельское поселение Липовка","36644406","сельское поселение"]
["Хворостянский муниципальный район","сельское поселение Масленниково","36644408","сельское поселение"]
["Хворостянский муниципальный район","сельское поселение Новокуровка","36644416","сельское поселение"]
["Хворостянский муниципальный район","сельское поселение Новотулка","36644420","сельское поселение"]
["Хворостянский муниципальный район","сельское поселение Прогресс","36644421","сельское поселение"]
["Хворостянский муниципальный район","сельское поселение Романовка","36644422","сельское поселение"]
["Хворостянский муниципальный район","сельское поселение Соловьево","36644425","сельское поселение"]
["Хворостянский муниципальный район","сельское поселение Студенецы","36644423","сельское поселение"]
["Хворостянский муниципальный район","сельское поселение Хворостянка","36644424","сельское поселение"]
["Челно-Вершинский муниципальный район","Челно-Вершинский муниципальный район","36646000","муниципальный район"]
["Челно-Вершинский муниципальный район","сельское поселение Девлезеркино","36646404","сельское поселение"]
["Челно-Вершинский муниципальный район","сельское поселение Каменный Брод","36646412","сельское поселение"]
["Челно-Вершинский муниципальный район","сельское поселение Краснояриха","36646416","сельское поселение"]
["Челно-Вершинский муниципальный район","сельское поселение Красный Строитель","36646408","сельское поселение"]
["Челно-Вершинский муниципальный район","сельское поселение Новое Аделяково","36646419","сельское поселение"]
["Челно-Вершинский муниципальный район","сельское поселение Озерки","36646420","сельское поселение"]
["Челно-Вершинский муниципальный район","сельское поселение Сиделькино","36646424","сельское поселение"]
["Челно-Вершинский муниципальный район","сельское поселение Токмакла","36646428","сельское поселение"]
["Челно-Вершинский муниципальный район","сельское поселение Челно-Вершины","36646432","сельское поселение"]
["Челно-Вершинский муниципальный район","сельское поселение Чувашское Урметьево","36646440","сельское поселение"]
["Челно-Вершинский муниципальный район","сельское поселение Эштебенькино","36646444","сельское поселение"]
["Шенталинский муниципальный район","Шенталинский муниципальный район","36648000","муниципальный район"]
["Шенталинский муниципальный район","сельское поселение Артюшкино","36648404","сельское поселение"]
["Шенталинский муниципальный район","сельское поселение Васильевка","36648432","сельское поселение"]
["Шенталинский муниципальный район","сельское поселение Денискино","36648408","сельское поселение"]
["Шенталинский муниципальный район","сельское поселение Каменка","36648412","сельское поселение"]
["Шенталинский муниципальный район","сельское поселение Канаш","36648414","сельское поселение"]
["Шенталинский муниципальный район","сельское поселение Салейкино","36648424","сельское поселение"]
["Шенталинский муниципальный район","сельское поселение Старая Шентала","36648440","сельское поселение"]
["Шенталинский муниципальный район","сельское поселение Туарма","36648444","сельское поселение"]
["Шенталинский муниципальный район","сельское поселение Четырла","36648446","сельское поселение"]
["Шенталинский муниципальный район","сельское поселение Шентала","36648448","сельское поселение"]
["Шигонский муниципальный район","Шигонский муниципальный район","36650000","муниципальный район"]
["Шигонский муниципальный район","сельское поселение Береговой","36650416","сельское поселение"]
["Шигонский муниципальный район","сельское поселение Бичевная","36650406","сельское поселение"]
["Шигонский муниципальный район","сельское поселение Волжский Утес","36650407","сельское поселение"]
["Шигонский муниципальный район","сельское поселение Малячкино","36650410","сельское поселение"]
["Шигонский муниципальный район","сельское поселение Муранка","36650411","сельское поселение"]
["Шигонский муниципальный район","сельское поселение Новодевичье","36650412","сельское поселение"]
["Шигонский муниципальный район","сельское поселение Пионерский","36650420","сельское поселение"]
["Шигонский муниципальный район","сельское поселение Подвалье","36650424","сельское поселение"]
["Шигонский муниципальный район","сельское поселение Суринск","36650432","сельское поселение"]
["Шигонский муниципальный район","сельское поселение Тайдаково","36650436","сельское поселение"]
["Шигонский муниципальный район","сельское поселение Усолье","36650440","сельское поселение"]
["Шигонский муниципальный район","сельское поселение Шигоны","36650444","сельское поселение"]
["городской округ Жигулевск","городской округ Жигулевск","36704000","городской округ"]
["городской округ Кинель","городской округ Кинель","36708000","городской округ"]
["городской округ Новокуйбышевск","городской округ Новокуйбышевск","36713000","городской округ"]
["городской округ Октябрьск","городской округ Октябрьск","36718000","городской округ"]
["городской округ Отрадный","городской округ Отрадный","36724000","городской округ"]
["городской округ Похвистнево","городской округ Похвистнево","36727000","городской округ"]
["городской округ Самара","Железнодорожный","36701305","внутригородской район"]
["городской округ Самара","Кировский","36701310","внутригородской район"]
["городской округ Самара","Красноглинский","36701315","внутригородской район"]
["городской округ Самара","Куйбышевский","36701320","внутригородской район"]
["городской округ Самара","Ленинский","36701325","внутригородской район"]
["городской округ Самара","Октябрьский","36701330","внутригородской район"]
["городской округ Самара","Промышленный","36701335","внутригородской район"]
["городской округ Самара","Самарский","36701340","внутригородской район"]
["городской округ Самара","Советский","36701345","внутригородской район"]
["городской округ Самара","городской округ Самара","36701000","городской округ"]
["городской округ Сызрань","городской округ Сызрань","36735000","городской округ"]
["городской округ Тольятти","городской округ Тольятти","36740000","городской округ"]
["городской округ Чапаевск","городской округ Чапаевск","36750000","городской округ"]

{"sheet":"REESTR_EGRUL","index":20,"n_rows":0,"n_cols":0,"rows_kept":0,"cut":false,"hidden":true,"merged":[]}

{"sheet":"modfrmRegion","index":21,"n_rows":0,"n_cols":0,"rows_kept":0,"cut":false,"hidden":true,"merged":[]}

{"sheet":"modfrmReestr","index":22,"n_rows":0,"n_cols":0,"rows_kept":0,"cut":false,"hidden":true,"merged":[]}

{"sheet":"modfrmFindEGRUL","index":23,"n_rows":0,"n_cols":0,"rows_kept":0,"cut":false,"hidden":true,"merged":[]}

{"sheet":"modfrmCheckUpdates","index":24,"n_rows":0,"n_cols":0,"rows_kept":0,"cut":false,"hidden":true,"merged":[]}

{"sheet":"modReestr","index":25,"n_rows":0,"n_cols":0,"rows_kept":0,"cut":false,"hidden":true,"merged":[]}

{"sheet":"modUpdTemplMain","index":26,"n_rows":0,"n_cols":0,"rows_kept":0,"cut":false,"hidden":true,"merged":[]}

{"sheet":"modHyperlink","index":27,"n_rows":0,"n_cols":0,"rows_kept":0,"cut":false,"hidden":true,"merged":[]}

{"sheet":"modClassifierValidate","index":28,"n_rows":0,"n_cols":0,"rows_kept":0,"cut":false,"hidden":true,"merged":[]}